Workbook

Sheet ReadMe
A1: Instructions for Electronic Forms, pg 1
A2: 2015 WSEC Compliance Forms for Commercial Buildings including R2, R3, & R4 over 3 stories and all R1
B3: Revised Oct 2017
B4: Commercial Provision Chapters 1 - 5 of the 2015 Washington State Energy Code apply to all commercial occupancies, R-2, R-3 & R4 occupancies greater than 3 stories above grade, and R-1 occupancy (all building heights).
A5: Intro | B5: This file, ENV15-v4.XLSM, has electronic compliance forms for general project information including Section C406, and envelope provisions as defined in Sections C101, C303, C402, C406, Chapter 5 (existing buildings) and Appendix A (default values) for Climate Zones 4c and 5b. There are two companion files: LTG15-v4.XLSM (Section C405 lighting and electrical systems), and MECH15-v4.XLSM (Section C403 and C404 mechanical and service water systems).
A6: Energy Code | B6: This form is a compliance aid and is not a substitute for the full energy code text or specific jurisdiction compliance requirements. Users should refer to the code text and contact the local jurisdiction for complete information. The full 2015 WSEC code text is available for download from the NEEC website:
B7: http:/www.neec.net/energy-codes
A8: Start-up | B8: Select this file from the NEEC website to download to your computer. When opening the file be sure to Enable Macros.
A9: Overview | B9: This file is an Excel workbook that contains multiple compliance forms and resources in Excel worksheets. Each worksheet is indicated by a tab at the bottom of the screen. You may visit each worksheet by selecting it's tab. If you cannot see these tabs, select "Full Screen" in Excel.
B10: Most calculations are automated. Cells that display informational text and the results of calculations are write-protected and cannot be edited.
A11: Save Files | B11: This file is saved in the same manner as any standard Excel file.
A12: Getting Around | B12: Some forms have two or more pages. Both pages are available on screen when you select the tab for a form (worksheet). Use the scroll bars to find the second page located below the first page.
A13: Input Cells | B13: All general project information and the date are entered once on PROJ-SUM. This information is automatically replicated on all other ENV forms. The PROJ-SUM form accompanies all other ENV forms.
B14: Only input cells are accessible. If you try to edit a write-protected cell an error message will appear requesting a password. A password IS NOT required to complete these forms. You may use the TAB key to move to the next input cell. If the TAB doesn't take you where you want to go, use your mouse to move around the form.
B15: Avoid excessively long text strings when entering information. In some cases, text that extends beyond the available space will not be visible. In most cases the text will wrap within the cell. This may force part of the form onto a new page.
B16: To enter the date, use this format: mm/dd/yyyy. For example, you would enter 7/1/2018 or 12/21/2018.
B17: Check boxes can be checked or unchecked by clicking in the box with your mouse. Radio buttons (circles) allow only one in a set to be selected.
B18: Drop-down lists have an arrow at the right side of the cell. Click on the arrow with your mouse and select the appropriate option. Use the delete button on your computer to clear a drop-down entry.
B19: When a form has a space for notes or explanation, click anywhere in the space to edit.
A20: Personalizing | B20: You can personalize the forms with your company name, address, phone, or any other information. This is done by editing the header or footer in Excel.
A21: Adding Lines and | B21: Many tables, such as for listing envelope assembly types, have a certain number of lines available for entering data. You may need more lines to enter all your information. Where this feature is available, you can add additional lines to the table by selecting the "+" button on the right hand side of the table with your mouse. If you can't see the "+" button, scroll to the right or increase the View Zoom setting for the worksheet.
A22: Removing | B22: To remove lines that you have added, select the "-" button with your mouse. You cannot remove lines that were not added; an error message will appear if you try.
B23: If you add additional lines with this method, the pagination may be affected forcing the forms to carry additional lines over to other pages. Be sure to submit all pages to the plans examiner.
A24: Target Insulation Allowance | B24: You must select an Target Insulation Allowance on ENV-SUM (line 17) to enable the forms.
A25: Compliance Path | B25: You must select a Compliance Path on ENV-SUM (line 18) to activate the correct input method for Window-to-Wall and Skylight-to-Roof ratios.
A26: Instructions for Electronic Forms, pg 2
A27: =A2 -> 2015 WSEC Compliance Forms for Commercial Buildings including R2, R3, & R4 over 3 stories and all R1
B28: =B3 -> Revised Oct 2017
A29: Fenestration Area | B29: For projects complying via the Prescriptive Path, enter the vertical fenestration area, net wall area (includes everything except vertical fenestration), skylight area and net roof area (includes everything except skylights) directly into the Vertical Fenestration and Skylight Area Calculation input cells on the ENV-SUM form. The form will calculate the Window-to-Wall and Skylight-to-Roof ratios.
B30: For projects complying via the Component Performance Path, the Vertical Fenestration and Skylight Area inputs in the ENV-SUM form are write protected. Enter all applicable envelope information in the ENV-UA form. The resulting Window-to-Wall and Skylight-to-Roof ratios will auto fill into the ENV-SUM form from the ENV-UA form.
A31: Vertical Fenestration Alternates | B31: The prescriptive vertical fenestration target area is 30%. This target increases to 40% if the project complies with the requirements of C402.4.1.1 in buildings < 3 stories with 50% floor area in the daylight zone, C402.4.1.1 in buildings with ≥ 3 stories with 25% of net floor area in the daylight zone, C402.4.1.3 high performance vertical fenestration, or C402.4.1.4 dedicated outdoor air system (DOAS).
B32: If the project is eligible for one of these alternates, select the corresponding button on Line 34-39 of the ENV-SUM form. This will re-calculate the prescriptive target area in the ENV-SUM and ENV-UA forms based on 40%.
A33: Component Performance Calculation Adjustments | B33: If the project is a Change of Occupancy (per C503.2) or Space Conditioning (per C505) and the project will comply via component performance, then select checkbox in Line 19 of ENV-SUM to adjust UA calculation to allow proposed UA to be 10% higher than the Code target UA.
B34: If the project will comply with the Enhanced Envelope additional efficiency package option per C406.8, then an ENV-UA form to demonstrate component performance compliance is required. Select checkbox in Line 19 of ENV-SUM to adjust component performance calculation to test whether the proposed UA is 15% lower than the Code target UA.
A35: Target Area Adjustment | B35: Target Area Adjustment is required if the project exceeds the prescriptive target area for vertical fenestration or skylights. Adjusted target areas are automatically calculated in the ENV-UA form using envelope assembly areas you enter for your project. Adjusted target areas will appear in the Target UA column in the ENV-UA form. Refer to Target Area Adjustment worksheet for the supporting calculations.
A36: Printing | B36: The forms should print on any printer supported by your operating system. You will need to have the following TrueType fonts installed under Windows: Arial, Times New Roman, Courier New and Wingdings. These are all standard Windows fonts.
B37: If you are losing form details when printing, you may have a shortage of printer memory. Try printing problem pages individually.
B38: By default, only the active worksheet is printed. To print more than one worksheet at a time, open your print set-up menu and select either the page range you wish to print or Entire Workbook.
B39: Forms (worksheets) in a workbook may not be deleted because the file is locked.
A40: Blank Forms | B40: NEEC does not recommend completing these compliance forms by hand. Most worksheets run various calculations and compliance checks. For this reason, many jurisdictions do not accept these forms if not completed electronically. Verify with your jurisdiction prior to submitting forms completed by hand.
B41: To print blank forms to fill out by hand, delete all of the heading information at the beginning of ENV-SUM and select the desired Occupancy Group.
B42: For each radio button group there is a button labeled "Clear." Clicking this button will clear the other buttons so that they will print as empty circles. The "Clear" button will not print.
A43: End of Instructions for Electronic Forms

Sheet PROJ-SUM
A1: Project Summary, pg 1 | F1: PROJ-SUM
A2: =ReadMe!A2 -> 2015 WSEC Compliance Forms for Commercial Buildings including R2, R3, & R4 over 3 stories and all R1 | F2: =ReadMe!B3 -> Revised Oct 2017
A3: General Info | B3: Project Title: | D3: 1 - This title will copy onto other forms | E3: Date | F3: 2017-01-01
B4: Project Street Address: | E4: For Building Department Use
B5: Project City, County, Zip:
B6: Project Owner or Rep:
B7: Jurisdiction:
A10: Project Description | I10: 4
A12: Occupancy Type | I12: 4
A14: Space Conditioning Categories
A17: Floor Area and Stories | C17: Floors Above Grade | D17: Building Gross Conditioned Floor Area | E17: Project Gross Conditioned Floor Area
A20: General Compliance Path | I20: linked
A28: Project Summary, pg 2 | F28: PROJ-SUM
A29: =A2 -> 2015 WSEC Compliance Forms for Commercial Buildings including R2, R3, & R4 over 3 stories and all R1 | F29: =F2 -> Revised Oct 2017
A30: General Info | B30: Project Title: | D30: =IF('PROJ-SUM'!$D$3="1 - This title will copy onto other forms","1 - Fill this out on line 3 above ",'PROJ-SUM'!$D$3) -> 1 - Fill this out on line 3 above | E30: Date | F30: =F3 -> 2017-01-01
A32: C406 Additional Efficiency Package Options Summary | C32: Building level efficiency options: | E32: Current Scope | F32: Previous Projects
C33: C406.8 Enhanced envelope performance
C34: C406.9 Reduced air infiltration
C35: C406.5 On-site renewable energy
C36: Building area level efficiency options
C37: C406.2 More efficient HVAC equipment
C38: C406.6 Dedicated outside air systems (DOAS)
C39: C406.7 Reduced energy use in service water heating
C40: C406.3 Reduced lighting power
C41: C406.4 Enhanced digital lighting controls
C42: C406 Comments:

Sheet ENV-SUM
A1: Envelope Summary | G1: ENV-SUM
A2: =ReadMe!A2 -> 2015 WSEC Compliance Forms for Commercial Buildings including R2, R3, & R4 over 3 stories and all R1 | G2: =ReadMe!B3 -> Revised Oct 2017
A3: Project Info | B3: Project Title: | C3: =IF('PROJ-SUM'!$D$3="1 - This title will copy onto other forms","1 - Fill this line out on PROJ-SUM",'PROJ-SUM'!$D$3) -> 1 - Fill this line out on PROJ-SUM | F3: Date | G3: =TEXT('PROJ-SUM'!$F$3,"mm/dd/yyyy") -> 01/01/2017
B4: Company Name: | F4: For Building Department Use
B5: Company Address:
B6: Applicant Name:
B7: Applicant Phone:
B8: Applicant Email:
A10: Project Description
A11: Envelope Project Scope
A12: Envelope Description
A13: Air Barrier Testing
A15: Compliance Documentation Scope and Method
A16: Scope of This Calculation
A17: Target Insulation Allowance
A18: Envelope Compliance Path
A19: Component Performance Calculation Adjustments
A20: Additions
A21: Alterations - Fenestration and Skylight
A23: Envelope Summary, pg. 2 | G23: ENV-SUM
A24: =A2 -> 2015 WSEC Compliance Forms for Commercial Buildings including R2, R3, & R4 over 3 stories and all R1 | G24: =G2 -> Revised Oct 2017
A25: Project Title: | B25: =C3 -> 1 - Fill this line out on PROJ-SUM | F25: Date | G25: =G3 -> 01/01/2017
D27: Total Vertical Fenestration Area (rough opening) | E27: NET Exterior Above Grade Wall Area | F27: Total Skylight Area (rough opening) | G27: NET Exterior Roof Area
C28: New
C29: Existing
C30: Total | D30: =IF(OR(ISNUMBER(D29),ISNUMBER(D28)),D28+D29,"") ->  | E30: =IF(OR(ISNUMBER(E29),ISNUMBER(E28)),E28+E29,"") ->  | F30: =IF(OR(ISNUMBER(F29),ISNUMBER(F28)),F28+F29,"") ->  | G30: =IF(OR(ISNUMBER(G29),ISNUMBER(G28)),G28+G29,"") -> 
D31: Vertical Fenestration-to-Wall Ratio (WWR) | E31: =IF(SUM(D28:E29)>0,IF(SUM(E28:E29)>0,SUM(D28:D29)/SUM(D28:E29),"Enter wall area"),"") ->  | F31: Skylight-to-Roof Ratio (SRR) | G31: =IF(SUM(F28:G29)>0,IF(SUM(G28:G29)>0,SUM(F28:F29)/SUM(F28:G29),"Enter roof area"),"") -> 
A32: Vertical Fenestration Area Compliance | C32: =IF(AND(CompliancePath<>3,ISNUMBER(E31)), IF(E31=0,"NO VERTICAL FENESTRATION PROPOSED. COMPLIES WITH MAXIMUM ALLOWANCE.", IF(AND(OR(Addition,Alteration), hpmwin ),"",IF(E31<=0.3,"VERTICAL FENESTRATION AREA COMPLIES WITH MAXIMUM ALLOWANCE", IF(E31<=0.4, IF(OR(dlz25pct,dlz50pct,hpfwin,hpmwin),"VERTICAL FENESTRATION AREA COMPLIES WITH MAXIMUM ALLOWED WITH FENESTRATION ALTERNATE", IF(CompliancePath=1,"Project exceeds maximum vertical fenestration area allowed for Prescriptive compliance. May comply prescriptively using a vertical fenestration alternate or via Component Performance with Target Area Adjustment.", IF(CompliancePath=2,"Project exceeds maximum target vertical fenestration area. Target area adjustment applied to UA calculation. May comply prescriptively using a vertical fenestration alternate.", ""))), IF(CompliancePath=1,"Project exceeds maximum vertical fenestration area allowed for Prescriptive compliance. Comply via Component Performance with Target Area Adjustment.", IF(CompliancePath=2,"Project exceeds maximum target vertical fenestration area. Target area adjustment applied to UA calculation.", "")))))),"") -> 
A33: Skylight Area Compliance | C33: =IF(AND(CompliancePath<>3,ISNUMBER(G31)), IF(G31>0.05, IF(CompliancePath=1, "Project exceeds maximum skylight area allowed for Prescriptive compliance. Comply via Component Performance with Target Area Adjustment.", IF(CompliancePath=2, "Project exceeds target skylight area. Target area adjustment applied to UA calculation.", "")), IF(G31>0,"SKYLIGHT AREA COMPLIES WITH MAXIMUM ALLOWANCE","NO SKYLIGHT PROPOSED. COMPILIES WITH MAXIMUM ALLOWANCE.")),"") -> 
A34: Vertical Fenestration Alternates
C36: Daylight Zone Calculations
C37: =IF(dlz50pct,"Building Conditioned Floor Area"&CHAR(10)&"(building < 3 stories)",IF(dlz25pct,"Building Net Floor Area"&CHAR(10)&"(building ≥ 3 stories)", "Daylight Zone Fenestration Alternate Not Selected. No Calculations Required")) -> Daylight Zone Fenestration Alternate Not Selected. No Calculations Required | E37: Sidelight Daylight Zone Area | F37: Toplight Daylight Zone Area | G37: Percent Daylight Zone Area
G38: =IF(C38>0,SUM(E38:F38)/C38,"") -> 
G39: =IF(dlz50pct,IF(AND(C38>0,G38>0),IF(G38>=0.5,"Qualifies for Daylight Zone Alternate","Does Not Qualify for Daylight Zone Alternate"),""),IF(dlz25pct,IF(AND(C38>0,G38>0),IF(G38>=0.25,"Qualifies for Daylight Zone Alternate","Does Not Qualify for Daylight Zone Alternate"),""),"")) -> 
A40: Spaces in Single Story Building Requiring Skylights
C41: Space | D41: Space Area (ft2) | E41: DLZ Area (ft2) | F41: SRR or Aperture | G41: Exception
M43: 0
A46: Envelope Exemptions
E48: Wall Insulation R-Value | F48: Roof Insulation R-Value | G48: Overall Average U-Factor
C49: Equipment Building Envelope
F50: Electronic equipment power (watts/sf)
F51: Heating system output capacity (Btu/hr)
F52: Cooling capacity (Yes/No)

Sheet ENV-REQUIREMENTS
A1: Envelope Requirements Summary, pg 1 | F1: ENV-REQ
A2: =ReadMe!A2 -> 2015 WSEC Compliance Forms for Commercial Buildings including R2, R3, & R4 over 3 stories and all R1 | F2: =ReadMe!B3 -> Revised Oct 2017
A3: Minimum Requirements
A4: for Prescriptive Compliance
B5: Prescriptive Path | C5: Table C402.1.3 Notes 1,7 Insulation Minimum R-Value | E5: Table C402.1.4 Notes 1,2 Assembly Maximum U-factor
B6: Occupancy Group | C6: All Other | D6: Group R | E6: All Other | F6: Group R
A7: Opaque Elements
A8: Roofs
B9: Insulation Entirely above Deck | C9: R-38 c.i. | D9: R-38 c.i. | E9: U-0.027 | F9: U-0.027
B10: Metal Building (with thermal spacer block) Note 3 | C10: R-25 + R-11 Ls | D10: R-25 + R-11 Ls | E10: U-0.031 | F10: U-0.031
B11: Attic and Other | C11: R-49 | D11: R-49 | E11: U-0.021 | F11: U-0.021
B12: Joist or single rafter | C12: R-49 | D12: R-49 | E12: U-0.027 | F12: U-0.027
A13: Walls, Above-grade
B14: Mass | C14: R-9.5 c.i. Note 6 | D14: R-13.3 c.i. | E14: U-0.104 Note 6 | F14: U-0.078
B15: Mass transfer deck slab edge | C15: No R-Value for prescriptive compliance | E15: U-0.200 | F15: U-0.200
B16: Metal Building | C16: R-19 c.i. | D16: R-19 c.i. | E16: U-0.052 | F16: U-0.052
B17: Steel Framed | C17: R-13 + R-10c.i. | D17: R-19 + R-8.5 c.i. | E17: U-0.055 | F17: U-0.055
B18: Wood Framed and Other | C18: R-21 w/ int. frame | D18: R-21 w/ int. frame | E18: U-0.054 | F18: U-0.054
A19: Below Grade Wall Note 4 | C19: Same as above grade | E19: Same as above grade
A20: Floors
B21: Mass | C21: R-30 c.i. | D21: R-30 c.i. | E21: U-0.031 | F21: U-0.031
B22: Steel Joist | C22: R-38 + R-10 c.i. | D22: R-38 + R-10 c.i. | E22: U-0.029 | F22: U-0.029
B23: Wood Framed and Other | C23: R-30 | D23: R-30 | E23: U-0.029 | F23: U-0.029
A24: Slab-On-Grade Floors
B25: Unheated | C25: R-10 for 24 in. (from top of slab) | E25: F-0.54 | F25: F-0.54
B26: Heated Note 5 | C26: R-10 perimeter & under entire slab | E26: F-0.55 | F26: F-0.55
A27: Opaque Doors
B28: Swinging | C28: No R-Value for prescriptive compliance | E28: U-0.37 | F28: U-0.37
B29: Nonswinging (Roll-up or sliding) | C29: R-4.75 | D29: R-4.75 | E29: U-0.34 | F29: U-0.34
C30: Table C402.4 - 0-30% of wall area, or 30%-40% per Section C402.4.1.1 DLZ or Section C402.4.1.4 DOAS | E30: Section C402.4.1.3 High Performance Fenestration Option - 0-40% of wall area
A31: Fenestration | C31: Assembly Maximum U-factor Notes 1,2
A32: Vertical Fenestration
B33: Nonmetal framing | C33: U-0.30 | D33: U-0.30 | E33: U-0.28 | F33: U-0.28
B34: Metal framing (fixed) | C34: U-0.38 | D34: U-0.38 | E34: U-0.34 | F34: U-0.34
B35: Metal framing (operable) | C35: U-0.40 | D35: U-0.40 | E35: U-0.36 | F35: U-0.36
B36: Entrance doors | C36: U-0.60 | D36: U-0.60 | E36: U-0.60 | F36: U-0.60
A37: Skylights
B38: Skylights | C38: U-0.50 | D38: U-0.50 | E38: U-0.50 | F38: U-0.50
A39: Fenestration | C39: Assembly Maximum SHGC Factor
A40: Vertical Fenestration | C40: PF<0.2: north - SHGC=0.53; all other SHGC=0.4 0.2 ≤ PF < 0.5: north - SHGC-0.58; all other - SHGC-0.48 PF ≥ 0.5: all orientations - SHGC-0.64 | E40: PF<0.2: north - SHGC=0.46; all other SHGC=0.35 0.2 ≤ PF < 0.5: north - SHGC-0.51; all other - SHGC-0.42 PF ≥ 0.5: all orientations - SHGC-0.56
A41: Skylights | C41: SHGC-0.35 | E41: SHGC-0.35
A42: C410.2 Refrigerated Spaces Insulation | C42: Insulation Minimum R-Value | E42: Assembly Maximum U-factor
A43: Freezers - Walk-in and Warehouse
B44: Roof / Ceiling | C44: R-32 | E44: U-0.030
B45: Wall | C45: R-32 | E45: U-0.030
B46: Door | C46: R-32 | E46: U-0.030
B47: Door - transparent reach-in | C47: triple-pane, heat-reflective treated or gas fill
B48: Floor | C48: R-28 | E48: U-0.035
A49: Coolers - Walk-in and Warehouse
B50: Roof / Ceiling | C50: R-25 | E50: U-0.039
B51: Wall | C51: R-25 | E51: U-0.039
B52: Door | C52: R-25 | E52: U-0.039
B53: Door - transparent reach-in | C53: double-pane, heat-reflective treated & gas fill, or comply with freezer door req.
B54: Floor | C54: No Requirement
A55: Envelope Requirements Summary, pg 2 | F55: ENV-REQ
A56: =A2 -> 2015 WSEC Compliance Forms for Commercial Buildings including R2, R3, & R4 over 3 stories and all R1 | F56: =F2 -> Revised Oct 2017
A57: Definitions:
A62: Footnote Summary:
B73: Alternate continuous insulation nominal R-values
A98: End of Envelope Requirements Summary

Sheet ENV-PRESCRIPTIVE
A1: Prescriptive Path, pg. 1 | H1: ENV-PRESCRIPTIVE
A2: ='ENV-SUM'!A2 -> 2015 WSEC Compliance Forms for Commercial Buildings including R2, R3, & R4 over 3 stories and all R1 | H2: ='ENV-SUM'!G2 -> Revised Oct 2017
A3: ='ENV-SUM'!B3 -> Project Title: | D3: =IF('PROJ-SUM'!$D$3="1 - This title will copy onto other forms","1 - Fill this line out on PROJ-SUM",'PROJ-SUM'!$D$3) -> 1 - Fill this line out on PROJ-SUM | G3: Date | H3: =TEXT('PROJ-SUM'!$F$3,"mm/dd/yyyy") -> 01/01/2017
A4: Target Insulation Allowance | G4: For Building Department Use
C5: =IF(CompliancePath<>1," Prescriptive Compliance Not Selected",IF(CalcType=1," Fully Conditioned Space - Commercial, Group R, Mixed Use",IF(CalcType=2," Semi-heated Space",IF(CalcType=3," Refrigerated Cooler - See note 16 for instructions",IF(CalcType=4," Refrigerated Freezer - See note 17 for instructions",""))))) -> Prescriptive Compliance Not Selected
A6: Fenestration Area as % gross above-grade wall area | D6: =IF('ENV-SUM'!E31>0,'ENV-SUM'!E31,0) ->  | E6: Max. Target: | F6: ='Target Area Adjustments'!D14 -> 0.3
A7: Skylight Area as % gross roof area | D7: =IF('ENV-SUM'!G31>0,'ENV-SUM'!G31,0) ->  | E7: Max. Target: | F7: ='Target Area Adjustments'!D66 -> 0.05
A8: Vertical Fenestration Alternates: | F8: ='TA1'!A28 -> None Selected on ENV-SUM | G8: User Note
A10: Building Component | D10: R-Value Method for Prescriptive Compliance | G10: U-Factor/F-Factor Method for Prescriptive Compliance
C11: Provide plan/detail # of assembly and description | D11: Cavity Ins. R-Value | E11: Continuous Ins. (CI) R-Value1 | F11: % Area of Metal Penetrations in CI2 | G11: Assembly U-Factor | H11: U-Factor Source3
M14: 0
M20: 0
A59: Prescriptive Path, pg. 2 | H59: ENV-PRESCRIPTIVE
A60: =A2 -> 2015 WSEC Compliance Forms for Commercial Buildings including R2, R3, & R4 over 3 stories and all R1 | H60: =H2 -> Revised Oct 2017
A61: ='ENV-SUM'!B3 -> Project Title: | D61: =D3 -> 1 - Fill this line out on PROJ-SUM | G61: Date | H61: =H3 -> 01/01/2017
A62: Fenestration Area as % gross above-grade wall area | D62: =D6 ->  | E62: Max. Target: | F62: =F6 -> 0.3 | G62: For Building Department Use
A63: Skylight Area as % gross roof area | D63: =D7 ->  | E63: Max. Target: | F63: =F7 -> 0.05
A65: Building Component | D65: R-Value Method for Prescriptive Compliance | G65: U-Factor/F-Factor Method for Prescriptive Compliance
C66: Provide plan/detail # of assembly and description | D66: Perim. Ins. R-Value | E66: Full Slab CI R-Value | G66: F-Factor | H66: F-Factor Source10
M69: 0
L72: 0 | M72: 0
C73: Provide ID from door schedule and description | D73: Ins. R-Value | G73: Assembly U-Factor | H73: U-Factor Source11
D80: Solar Heat Gain Coefficient (SHGC) | G80: U-Factor for Prescriptive Compliance
C81: Provide ID from window schedule and description | D81: Projection Factor (PF) if applicable12 | E81: Orientation (N or SEW)13 | F81: Assembly SHGC14 | G81: Assembly U-Factor | H81: U-Factor Source14
A95: Insulation is required under the entire freezer floor. If the freezer floor assembly rests on top of a standard floor, the vertical edge of the freezer floor shall be entered as and comply with the requirements for a freezer wall. If freezer floor insulation is installed as integral to or applied underneath a slab-on-grade or exposed floor, this floor shall be thermally broken from the surrounding floor area with the same amount of insulation as required for a freezer floor. Enter proposed thermal break information in the Freezer Floor section and note it as In-Floor Thermal Break.
M98: 0
A99: Miscellaneous - Refrigerated Spaces
C100: Provide plan/detail # of assembly and description | D100: Ins. R-Value | G100: Assembly U-Factor | H100: U-Factor Source
C104: Provide ID from window schedule and description | D104: Cooler / Freezer | E104: Double Pane Glass | F104: Triple Pane Glass | G104: Inert Gas Filled | H104: Heat Reflective Treated Glass
M107: 0
M110: 0
B148: Cooler
B149: Freezer
C150: square inches per square foot
A151: ≤ 0.04% | C151: =144*0.04*0.01 -> 0.0576
A152: 0.04% - 0.079% | C152: =144*0.08*0.01 -> 0.1152
A153: 0.08% - 0.119% | C153: =144*0.12*0.01 -> 0.1728
A155: N
A156: SEW

Sheet ENV-UA
A1: Component Performance Path, pg. 1 | L1: ENV-UA
A2: ='ENV-SUM'!A2 -> 2015 WSEC Compliance Forms for Commercial Buildings including R2, R3, & R4 over 3 stories and all R1 | L2: ='ENV-SUM'!G2 -> Revised Oct 2017
A3: ='ENV-SUM'!B3 -> Project Title: | F3: =IF('PROJ-SUM'!$D$3="1 - This title will copy onto other forms","1 - Fill this line out on PROJ-SUM",'PROJ-SUM'!$D$3) -> 1 - Fill this line out on PROJ-SUM | J3: Date | K3: =TEXT('PROJ-SUM'!$F$3,"mm/dd/yyyy") -> 01/01/2017
A4: Target Insulation Allowance | J4: For Building Department Use
D5: =IF(CompliancePath<>2,"Component Performance Not Selected",IF(CalcType=1,"Fully Conditioned Space - Commercial, Group R, Mixed Use",IF(CalcType=2,"Semi-heated Space",IF(CalcType=3,"Refrigerated Cooler - See note 11 for instructions",IF(CalcType=4,"Refrigerated Freezer - See note 12 for instructions",""))))) -> Component Performance Not Selected
A6: Calculation Adjustments
D7: =IF(SemiHt,IF(ChangeofUseOrConditioning,IF(C406.8_Enhanced_Envelope,"Proposed UA shall be at least 5% lower than Target UA excluding walls","Proposed UA is allowed to be 10% higher than Target UA excluding walls"),IF(C406.8_Enhanced_Envelope,"Proposed UA shall be at least 15% lower than Target UA excluding walls","Semi-heated space - walls excluded from proposed and target total UA")), IF(ChangeofUseOrConditioning,IF(C406.8_Enhanced_Envelope,"Proposed UA shall be at least 5% lower than Target UA","Proposed UA is allowed to be 10% higher than Target UA"),IF(C406.8_Enhanced_Envelope,"Proposed UA shall be at least 15% lower than Target UA","None Applied"))) -> None Applied
A8: Fenestration Area as % gross above-grade wall area | G8: =IF('ENV-SUM'!E31>0,'ENV-SUM'!E31,0) ->  | H8: Max. Target: | I8: ='Target Area Adjustments'!D14 -> 0.3
A9: Skylight Area as % gross roof area | G9: =IF('ENV-SUM'!G31>0,'ENV-SUM'!G31,0) ->  | H9: Max. Target: | I9: ='Target Area Adjustments'!D66 -> 0.05
A10: Vertical Fenestration Alternates: | I10: ='TA1'!A28 -> None Selected on ENV-SUM
F11: Vertical Fenestration | H11: Net Wall | J11: User Note
F12: Skylights | H12: Net Roof
A13: Building Component | H13: Proposed UA | J13: Target UA
D14: Cavity+CI | E14: Plan/Detail # | F14: U-factor Source & Table # 2 | G14: U-factor | H14: x Area (A) | I14: = UA (U x A) | J14: U-factor | K14: x Area (A) = | L14: UA (U x A)
C15: R= | I15: =IF(AND(G15=0,H15=0),0,IF(OR(G15=0,H15=0),NA(), H15*G15)) -> 0 | J15: ='TA1'!F132 -> 0.027 | K15: ='Target Area Adjustments'!J83 -> 0 | L15: =IF(J15="NR","NR",IF(TYPE(J15*K15)<>1,0,J15*K15)) -> 0
C16: R= | I16: =IF(AND(G16=0,H16=0),0,IF(OR(G16=0,H16=0),NA(), H16*G16)) -> 0 | J16: Above Deck Insulation | L16: ='TA1'!F165 -> U-0.027
C17: R= | I17: =IF(AND(G17=0,H17=0),0,IF(OR(G17=0,H17=0),NA(), H17*G17)) -> 0 | M17: 0
C18: R= | I18: =IF(AND(G18=0,H18=0),0,IF(OR(G18=0,H18=0),NA(), H18*G18)) -> 0 | J18: ='TA1'!F133 -> 0.031 | K18: ='Target Area Adjustments'!J84 -> 0 | L18: =IF(J18="NR","NR",IF(TYPE(J18*K18)<>1,0,J18*K18)) -> 0
C19: R= | I19: 0 | J19: Metal Building | L19: ='TA1'!F166 -> U-0.031
C20: R= | I20: 0 | M20: 0
C21: R= | I21: =IF(AND(G21=0,H21=0),0,IF(OR(G21=0,H21=0),NA(), H21*G21)) -> 0 | J21: ='TA1'!F135 -> 0.027 | K21: ='Target Area Adjustments'!J85 -> 0 | L21: =IF(J21="NR","NR",IF(TYPE(J21*K21)<>1,0,J21*K21)) -> 0
C22: R= | I22: =IF(AND(G22=0,H22=0),0,IF(OR(G22=0,H22=0),NA(), H22*G22)) -> 0 | J22: Joist/single rafter | L22: ='TA1'!F168 -> U-0.027
C23: R= | I23: =IF(AND(G23=0,H23=0),0,IF(OR(G23=0,H23=0),NA(), H23*G23)) -> 0 | M23: 0
C24: R= | I24: 0 | J24: ='TA1'!F134 -> 0.021 | K24: ='Target Area Adjustments'!J86 -> 0 | L24: =IF(J24="NR","NR",IF(TYPE(J24*K24)<>1,0,J24*K24)) -> 0
C25: R= | I25: 0 | J25: Single raft, attic, other | L25: ='TA1'!F167 -> U-0.021
C26: R= | I26: 0 | M26: 0
C27: R= | I27: =IF(AND(G27=0,H27=0),0,IF(OR(G27=0,H27=0),NA(), IF(SemiHt,"NR",H27*G27))) -> 0 | J27: ='TA1'!F138 -> 0.055 | K27: ='Target Area Adjustments'!J35 -> 0 | L27: =IF(J27="NR","NR",IF(TYPE(J27*K27)<>1,0,J27*K27)) -> 0
C28: R= | I28: 0 | J28: Steel/metal frame | L28: ='TA1'!F171 -> U-0.055
C29: R= | I29: 0 | M29: 0
C30: R= | I30: 0 | J30: ='TA1'!F137 -> 0.052 | K30: ='Target Area Adjustments'!J36 -> 0 | L30: =IF(J30="NR","NR",IF(TYPE(J30*K30)<>1,0,J30*K30)) -> 0
C31: R= | I31: 0 | J31: Metal Building | L31: ='TA1'!F170 -> U-0.052
C32: R= | I32: 0 | M32: 0
C33: R= | I33: 0 | J33: ='TA1'!F139 -> 0.054 | K33: ='Target Area Adjustments'!J37 -> 0 | L33: =IF(J33="NR","NR",IF(TYPE(J33*K33)<>1,0,J33*K33)) -> 0
C34: R= | I34: 0 | J34: Wood Frame, other | L34: ='TA1'!F172 -> U-0.054
C35: R= | I35: 0 | M35: 0
C36: R= | I36: 0 | J36: ='TA1'!F136 -> 0.104 | K36: ='Target Area Adjustments'!J38 -> 0 | L36: =IF(J36="NR","NR",IF(TYPE(J36*K36)<>1,0,J36*K36)) -> 0
C37: R= | I37: 0 | J37: Mass Wall | L37: ='TA1'!F169 -> U-0.104
C38: R= | I38: 0 | M38: 0
C39: R= | I39: 0 | J39: ='TA1'!F140 -> 0.2 | K39: ='Target Area Adjustments'!J39 -> 0 | L39: =IF(J39="NR","NR",IF(TYPE(J39*K39)<>1,0,J39*K39)) -> 0
C40: R= | I40: 0 | J40: Mass Transfer Deck | L40: ='TA1'!F173 -> U-0.20
C41: R= | I41: 0 | M41: 0
C42: R= | I42: 0 | J42: ='TA1'!G136 -> 0.104 | K42: ='Target Area Adjustments'!J40 -> 0 | L42: =IF(J42="NR","NR",IF(TYPE(J42*K42)<>1,0,J42*K42)) -> 0
C43: R= | I43: 0 | J43: Group R Mass Wall | L43: ='TA1'!G169 -> U-0.078
C44: R= | I44: 0 | M44: 0
C45: R= | I45: 0 | J45: ='TA1'!F148 -> 0.104 | K45: =SUM(H45:H47) -> 0 | L45: =IF(J45="NR","NR",IF(TYPE(J45*K45)<>1,0,J45*K45)) -> 0
C46: R= | I46: 0 | J46: Assumed to be Mass Wall | L46: ='TA1'!F181 -> U-0.104
C47: R= | I47: 0 | M47: 0
C48: R= | I48: 0 | J48: ='TA1'!G148 -> 0.104 | K48: =SUM(H48:H50) -> 0 | L48: =IF(J48="NR","NR",IF(TYPE(J48*K48)<>1,0,J48*K48)) -> 0
C49: R= | I49: 0 | J49: Assumed to be Mass Wall | L49: ='TA1'!G181 -> U-0.078
C50: R= | I50: 0 | M50: 0
C51: R= | I51: =IF(AND(G51=0,H51=0),0,IF(OR(G51=0,H51=0),NA(),H51*G51)) -> 0 | J51: ='TA1'!F142 -> 0.031 | K51: =SUM(H51:H53) -> 0 | L51: =IF(J51="NR","NR",IF(TYPE(J51*K51)<>1,0,J51*K51)) -> 0
C52: R= | I52: 0 | J52: Mass Floor | L52: ='TA1'!F175 -> U-0.031
C53: R= | I53: 0 | M53: 0
C54: R= | I54: 0 | J54: ='TA1'!F143 -> 0.029 | K54: =SUM(H54:H56) -> 0 | L54: =IF(J54="NR","NR",IF(TYPE(J54*K54)<>1,0,J54*K54)) -> 0
C55: R= | I55: 0 | J55: Joist/Framing | L55: ='TA1'!F176 -> U-0.029
C56: R= | I56: 0 | M56: 0
H58: Area1 | I58: UA | K58: Area1 | L58: UA
D59: =IF(H59<>K59,"Target Area Adjusted","") ->  | G59: Page 1 Subtotal | H59: =SUM(H15:H56) -> 0 | I59: =SUM(I15:I56) -> 0 | K59: =SUM(K15:K56) -> 0 | L59: =SUMIF(L15:L56,"<>""NR",L15:L56) -> 0
A61: Component Performance Compliance (UA) | L61: =L115 -> Component Performance Not Selected
A62: Component Performance Path, pg. 2 | L62: ENV-UA
A63: =A2 -> 2015 WSEC Compliance Forms for Commercial Buildings including R2, R3, & R4 over 3 stories and all R1 | L63: =L2 -> Revised Oct 2017
A64: ='ENV-SUM'!B3 -> Project Title: | F64: =F3 -> 1 - Fill this line out on PROJ-SUM | J64: Date | K64: =K3 -> 01/01/2017
A65: Fenestration Area as % gross above-grade wall area | G65: =G8 ->  | H65: Max. Target: | I65: =I8 -> 0.3 | J65: For Building Department Use
A66: Skylight Area as % gross roof area | G66: =G9 ->  | H66: Max. Target: | I66: =I9 -> 0.05
A68: Building Component | H68: Proposed UA | J68: Target UA
D69: Ins. R | E69: Plan/Detail # | F69: F-factor Source & Table # 8 | G69: F-factor | H69: x Perimeter | I69: = FP(F x P) | J69: F-factor | K69: x Perimeter = | L69: UA (U x A)
C70: R= | I70: =IF(AND(G70=0,H70=0),0,IF(OR(G70=0,H70=0),NA(), H70*G70)) -> 0 | J70: ='TA1'!F146 -> 0.54 | K70: =SUM(H70:H72) -> 0 | L70: =IF(TYPE(J70*K70)<>1,0,J70*K70) -> 0
C71: R= | I71: 0 | J71: Slab-On-Grade | L71: ='TA1'!F179 -> F-0.54
C72: R= | I72: 0 | M72: 0
C73: R= | I73: 0 | J73: ='TA1'!F147 -> 0.55 | K73: =SUM(H73:H75) -> 0 | L73: =IF(TYPE(J73*K73)<>1,0,J73*K73) -> 0
C74: R= | I74: 0 | J74: Heated Slab-On-Grade | L74: ='TA1'!F180 -> F-0.55
C75: R= | I75: 0 | M75: 0
C76: Schedule ID | F76: U-factor Source9,10 | G76: U-factor | H76: x Area (A) | I76: = UA (U x A) | J76: U-factor | K76: x Area (A) = | L76: UA (U x A)
I77: =IF(AND(G77=0,H77=0),0,IF(OR(G77=0,H77=0),NA(), H77*G77)) -> 0 | J77: ='TA1'!F130 -> 0.37 | K77: =SUM(H77:H79) -> 0 | L77: =IF(TYPE(J77*K77)<>1,0,J77*K77) -> 0
I78: 0 | J78: Opaque Swing Doors | L78: ='TA1'!F163 -> U-0.37
I79: =IF(AND(G79=0,H79=0),0,IF(OR(G79=0,H79=0),NA(), H79*G79)) -> 0 | M79: 0
I80: 0 | J80: ='TA1'!F131 -> 0.34 | K80: =SUM(H80:H82) -> 0 | L80: =IF(TYPE(J80*K80)<>1,0,J80*K80) -> 0
I81: 0 | J81: Opaque rollup & sliding | L81: ='TA1'!F164 -> U-0.34
I82: 0
I83: 0 | J83: ='TA1'!F125 -> 0.3 | K83: ='Target Area Adjustments'!J30 -> 0 | L83: =IF(TYPE(J83*K83)<>1,0,J83*K83) -> 0
J84: Non-Metal Frame | L84: ='TA1'!F158 -> U-0.30
I85: 0
I86: 0
I87: 0 | J87: ='TA1'!F126 -> 0.38 | K87: ='Target Area Adjustments'!J31 -> 0 | L87: =IF(TYPE(J87*K87)<>1,0,J87*K87) -> 0
I88: 0 | J88: Metal Frame, Fixed | L88: ='TA1'!F159 -> U-0.38
I89: 0
I90: 0
I91: 0 | J91: ='TA1'!F127 -> 0.4 | K91: ='Target Area Adjustments'!J32 -> 0 | L91: =IF(TYPE(J91*K91)<>1,0,J91*K91) -> 0
I92: 0 | J92: Metal Frame, Operable | L92: ='TA1'!F160 -> U-0.40
I93: 0
I94: 0 | M94: 0
I95: 0 | J95: ='TA1'!F128 -> 0.6 | K95: ='Target Area Adjustments'!J33 -> 0 | L95: =IF(TYPE(J95*K95)<>1,0,J95*K95) -> 0
I96: 0 | J96: Metal Entrance Door | L96: ='TA1'!F161 -> U-0.60
I97: 0
I98: 0 | M98: 0
I99: 0 | J99: ='TA1'!F129 -> 0.5 | K99: ='Target Area Adjustments'!J81 -> 0 | L99: =IF(TYPE(J99*K99)<>1,0,J99*K99) -> 0
I100: 0 | J100: All types | L100: ='TA1'!F162 -> U-0.50
I101: 0
I102: 0
A104: Refrigerated Space Freezer Floors | H104: Proposed UA | J104: Target UA
D105: CI | E105: Plan/Detail # | F105: U-factor Source & Table # 2 | G105: U-factor | H105: x Area (A) | I105: = UA (U x A) | J105: U-factor | K105: x Area (A) = | L105: UA (U x A)
C106: R= | I106: =IF(AND(G106=0,H106=0),0,IF(OR(G106=0,H106=0),NA(),H106*G106)) -> 0 | J106: =IF(CalcType<>4,"",'TA1'!F142) ->  | K106: =SUM(H106:H108) -> 0 | L106: =IF(J106="NR","NR",IF(TYPE(J106*K106)<>1,0,J106*K106)) -> 0
C107: R= | I107: =IF(AND(G107=0,H107=0),0,IF(OR(G107=0,H107=0),NA(),H107*G107)) -> 0 | J107: Freezer Floor | L107: =IF(CalcType<>4,"",'TA1'!F175) -> 
C108: R= | I108: =IF(AND(G108=0,H108=0),0,IF(OR(G108=0,H108=0),NA(),H108*G108)) -> 0 | M108: 0
H110: Area1 | I110: UA | K110: Area1 | L110: UA
D111: =IF(H111<>K111,"Target Area Adjusted","") ->  | G111: Page 2 Subtotal | H111: =SUM(H70:H108) -> 0 | I111: =SUM(I70:I108) -> 0 | K111: =K99+K95+K91+K87+K83+K80+K77+K73+K70+K106 -> 0 | L111: =L99+L95+L91+L87+L83+L80+L77+L73+L70+L106 -> 0
G112: Page 1 Subtotal | H112: =H59 -> 0 | I112: =I59 -> 0 | K112: =K59 -> 0 | L112: =L59 -> 0
G113: Project Total | H113: =H112+H111 -> 0 | I113: =I112+I111 -> 0 | K113: =K112+K111 -> 0 | L113: =L112+L111 -> 0
A115: Component Performance Compliance (UA) | L115: =IF(CompliancePath<>2,"Component Performance Not Selected",IF(CalcType=5,"Target Insulation Allowance not selected", IF(OR(L113=0,I113=0),"", IF(C406.8_Enhanced_Envelope, IF(I113<L113*0.85+0.00001,"UA COMPLIES", IF(ChangeofUseOrConditioning, IF(I113<L113*0.95+0.00001,"UA COMPLIES", "UA DOES NOT COMPLY WITH C406.8"), "UA DOES NOT COMPLY WITH C406.8")), IF(I113<L113+0.00001,"UA COMPLIES", IF(ChangeofUseOrConditioning, IF(I113>L113*1.10001,"UA DOES NOT COMPLY", "UA COMPLIES W/ EXISTING SPACE EXEMPTION"), "UA DOES NOT COMPLY") ))))) -> Component Performance Not Selected
A117: Refrigerated Space Windows In Doors 11, 12
E118: Plan/Detail # | F118: Description | G118: Cooler / Freezer | H118: Double Pane Glass | I118: Triple Pane Glass | J118: Inert Gas Filled | K118: Heat Reflective Treated Glass
M121: 0
M124: 0
A140: Cooler
A141: Freezer
O147: Refrigerated Freezers - Target U-factors for freezer roof, wall and door assemblies are per C410. Enter proposed information under the most similar assembly type. Target U-factor for insulated freezer floors is per C410. Insulation is required under the entire freezer floor. Enter proposed UA information under Freezer Floor if it is an insulated freezer floor assembly that rests on top of a standard floor. The vertical edge of an insulated freezer floor shall be documented as a section of freezer wall. If freezer floor insulation is installed as integral to or applied underneath a slab-on-grade or exposed floor, then enter proposed UA floor information under Floors (slab-on-grade entered as a mass floor). This floor area shall be thermally broken from the surrounding floor. Enter proposed FP information as In-Floor Thermal Break. Enter only the opaque portion of freezer doors. Windows within doors and reach-in display case doors shall comply with C410 prescriptive requirements.

Sheet TA1 (hidden)
A1: HARD CODED -- NOT SET on ENV-SUM or ENV-PROJ
A2: =IF(OR(CalcType=3,CalcType=4),2,1) -> 1 | B2: Calculation Group: 1=Building, 2=Refrigeration
A3: 1 | B3: Climate Zone: 1= Zone 4c/5, 2=Zone 6, 3=Cleared, 4= Seattle
I4: Addition button
A5: Transfer Variables - DO NOT CHANGE CELL ADDRESS - hard coded in VB | I5: 1
A6: ='Target Area Adjustments'!F11 -> 0 | B6: Window Area | I6: Alteration Button
A7: =SUM('Target Area Adjustments'!H11:J11) -> 0 | B7: Net AG Wall Area | I7: 1
A8: ='Target Area Adjustments'!F62 -> 0 | B8: Skylight Area
A9: ='Target Area Adjustments'!H62 -> 0 | B9: Net Ceiling Area
A10: ='Target Area Adjustments'!F12 -> 0 | B10: Existing Window Area
A11: ='Target Area Adjustments'!H12 -> 0 | B11: Existing Net AG Wall Area
A12: ='Target Area Adjustments'!F63 -> 0 | B12: Existing Skylight Area
A13: ='Target Area Adjustments'!H63 -> 0 | B13: Existing Net Ceiling Area
A15: Flags from Env-Sum Options
A16: FALSE | B16: New building
A17: FALSE | B17: Addition
A18: FALSE | B18: Alteration
A19: FALSE | B19: Window WWR unchanged
A20: FALSE | B20: Skylight SRR unchanged
A22: 4 | B22: Occupancy Group: 2017 LEAVE SET TO ONE, WAS: 1=Non Res, 2= Res, 3=Mixed Use , 4=none specified
A23: 3 | B23: Compliance Path: 1= Prescriptive, 2=component performance, 3= not specified | M23: ERROR MESSAGES - NOT USED BUT WOULD BE GOOD WAY TO STRUCTURE ERROR MESSAGES SO NEEC CAN MODIFY AS NEEDED
A24: 5 | B24: Calculation Type: 1- normal, 2-semi-heat, 3-refrigerated cooler, 4-refrigerated freezer, 5-clear | M24: page | N24: cell | O24: label | P24: message
A25: 3 | B25: Vertical Fenestration Alternates: 1= 50% DLZ, 2= 25% DLZ, 4= high performance window, 3=none, 5=high performance mechanical | M25: ENV-SUM | N25: D21 | O25: msgpre31noopts | P25: Project exceeds maximum vertical fenestration area for Prescriptive compliance. Comply via 50% DLZ Option (C402.3.1.1) or High Performance Window Option (C402.3.1.3) or Component Performance with Target Area Adjustment.
M26: ENV-SUM | N26: D21 | O26: msgpre41opts | P26: Project exceeds maximum vertical fenestration area for Prescriptive compliance. Comply via Component Performance with Target Area Adjustment.
A27: Derived Flags to provide name variables to clarify calculations | M27: ENV-SUM | N27: D21
A28: =IF(VertFenAlt=1," 50% Conditioned Floor Area in Daylight Zone",IF(VertFenAlt=2,"25% of Net Floor Area in Daylight Zone",IF(VertFenAlt=4,"High Performance Vertical Fenestration",IF(VertFenAlt=5,"Dedicated Outdoor Air System","None Selected on ENV-SUM")))) -> None Selected on ENV-SUM | B28: Vertical Fenestration Alternates text | M28: ENV-SUM | N28: D21
A29: =(VertFenAlt=1) -> FALSE | B29: >=50% of conditioned floor area in DLZ & building ≤ 2 stories: 1=yes, 2 no | M29: ENV-SUM | N29: D21
A30: =(VertFenAlt=2) -> FALSE | B30: >=25% of net floor area in DLZ & builidng ≥ 3 stories: 1=yes, 2 no | M30: ENV-SUM | N30: D21
A31: =(VertFenAlt=4) -> FALSE | B31: high performance glazing path (2-no, 1- yes) | M31: ENV-SUM | N31: D21
A32: =(VertFenAlt=5) -> FALSE | B32: high performance mechanical path (2-no, 1- yes) | M32: ENV-SUM | N32: D21
A33: =IF(VertFenAlt=3,0.3,0.4) -> 0.3 | B33: Maximum prescriptive / comp WWR | M33: ENV-SUM | N33: D21 | O33: msgcomply | P33: COMPLIES
A34: FALSE | B34: Change of Use / Conditioning
A35: FALSE | B35: C406.8 Enhanced Envelope | M35: ENV-SUM | N35: D21 | O35: msgua31noopts | P35: Project exceeds maximum target vertical fenestration area. Target area adjustment applied to UA calculation. May comply via 50% DLZ Option (C402.3.1.1) or High Performance Window Option (C402.3.1.3).
A36: =CalcType=2 -> FALSE | B36: Semi-ht Calculation
A37: =IF(AND(OR(Alteration),WWR_unchanged),TRUE,FALSE) -> FALSE | B37: Project is alteration and Window WWR unchanged
A38: =IF(AND(OR(Alteration),SRR_unchanged),TRUE,FALSE) -> FALSE | B38: Project is alteration and Skylight SRR unchanged
M41: ENV-SUM | N41: D21 | O41: msgua41dlz | P41: Project exceeds maximum target vertical fenestration area. Target area adjustment applied to UA calculation.
A42: Flags - Seattle Specific | M42: ENV-SUM | N42: D21 | O42: msgua41hpf | P42: Project exceeds maximum target vertical fenestration area. Target area adjustment applied to UA calculation.
A43: 2 | B43: Heating type (1 - Electric, 2 - Other)
A44: 2 | B44: Street level retail: 1=yes, 2 - no but paired submitted, 3 - no
A46: HEADER Row - NOT USED 2015
A47: Occupancy | C47: NOT USED 2015
A48: Climate zone | B48: =IF(A22=3," ",IF(A3=1,"Zones 4c/5b",IF(A3=2,"Zone 6b",IF(A3=4,"Seattle","")))) -> Zones 4c/5b | C48: NOT USED 2015
A49: Header | B49: =IF(AND(B47<>"",B48<>""),CONCATENATE(B48," ",B47),"") ->  | C49: NOT USED 2015
A50: 3 | B50: Prescriptive PF Factor - not used in 2015
A51: 3 | B51: North Face Credit Flag - not used in 2015
A53: Form Management - NOT USED 2015
A54: =OR(OccGroup=2,OccGroup=3) -> FALSE | B54: Group R
A55: =OR(OccGroup=1,OccGroup=3) -> FALSE | B55: Comm
A56: =OR(OccGroup=5) -> FALSE | B56: Refrigeration
A58: U-factor, F-factor, Max WWR Look Ups
A75: FEEDER LOOK UP to set window and skylight values for standard compliance or high performance fenestration compliance
C76: This look up was set up to look up percent glass. With WSEC 2012 it was co-opted to look up glazing based upon selection of the high performance path glazing. % win could be still be used by assign glazing case differently
H79: Glazing Case (for WSEC 2015: 1= HPF Win, 2=base, 3=SEC 2018 Electric heat values - in the past this was based by different levels of WWR.)
H80: =IF(heatfuel=1,3,IF(VertFenAlt=4,1,2)) -> 2
F83: For each window type value entered for every glazing case
F84: BLOCK FOR RAW U-VALUE DATA for Codes that vary values by glazing area. Referenced by lookup functions in U-value By Jurisdiction Table | Y84: BLOCK FOR RAW SHGC DATA for Codes that vary values by glazing area. Referenced by lookup functions in U-value By Jurisdiction Table
I85: Nres | J85: Nres | K85: Nres | L85: Res | M85: Res | N85: Res | O85: Refg | P85: Refg | Q85: Refg | R85: Freeze | S85: Freeze | T85: Freeze | AD85: Nres | AG85: Res | AH85: Refg | AI85: Refg | AJ85: Refg | AK85: Freezer | AL85: Freezer | AM85: Freezer
H86: Glazing Case | I86: 1 | J86: 2 | K86: Seattle | L86: 1 | M86: 2 | N86: Seattle | O86: 1 | P86: 2 | Q86: Seattle | R86: 1 | S86: 2 | T86: Seattle | Y86: SHGC | AD86: Seattle | AG86: Seattle | AH86: 1 | AI86: 2 | AJ86: Seattle | AK86: 1 | AL86: 2 | AM86: Seattle
F90: Window | G90: non-metal frame | H90: 1 | I90: 0.28 | J90: 0.28 | K90: 0.28 | L90: 0.28 | M90: 0.28 | N90: 0.28 | O90: 0.28 | P90: 0.28 | Q90: 0.28 | R90: 0.28 | S90: 0.28 | T90: 0.28 | Y90: Window | AA90: 1 | AB90: 0.35 | AC90: 0.35 | AD90: 0.35 | AE90: 0.35 | AF90: 0.35 | AG90: 0.35 | AH90: 0.35 | AI90: 0.35 | AJ90: 0.35 | AK90: 0.35 | AL90: 0.35 | AM90: 0.35
F91: Window | G91: non-metal frame | H91: 2 | I91: 0.3 | J91: 0.3 | K91: 0.3 | L91: 0.3 | M91: 0.3 | N91: 0.3 | O91: 0.3 | P91: 0.3 | Q91: 0.3 | R91: 0.3 | S91: 0.3 | T91: 0.3 | Y91: Window | AA91: 2 | AB91: 0.4 | AC91: 0.4 | AD91: 0.35 | AE91: 0.4 | AF91: 0.4 | AG91: 0.35 | AH91: 0.4 | AI91: 0.4 | AJ91: 0.35 | AK91: 0.4 | AL91: 0.4 | AM91: 0.35
F92: Window | G92: non-metal frame | H92: 3 | K92: 0.26 | N92: 0.26 | Q92: 0.26 | T92: 0.26 | Y92: Window | AA92: 3 | AD92: 0.35 | AG92: 0.35 | AJ92: 0.35 | AM92: 0.35
F93: Window | G93: Metal Frame, fixed | H93: 1 | I93: 0.34 | J93: 0.34 | K93: 0.34 | L93: 0.34 | M93: 0.34 | N93: 0.34 | O93: 0.34 | P93: 0.34 | Q93: 0.34 | R93: 0.34 | S93: 0.34 | T93: 0.34 | Y93: Window | Z93: 0.2<=pf<0.5 | AA93: 1 | AB93: =AB90*AB94/AB91 -> 0.42 | AC93: =AC90*AC94/AC91 -> 0.42 | AD93: 0.45 | AE93: =AE90*AE94/AE91 -> 0.42 | AF93: =AF90*AF94/AF91 -> 0.42 | AG93: 0.45 | AH93: =AH90*AH94/AH91 -> 0.42 | AI93: =AI90*AI94/AI91 -> 0.42 | AJ93: 0.45 | AK93: =AK90*AK94/AK91 -> 0.42 | AL93: =AL90*AL94/AL91 -> 0.42 | AM93: 0.45
F94: Window | G94: Metal Frame, fixed | H94: 2 | I94: 0.38 | J94: 0.38 | K94: 0.38 | L94: 0.38 | M94: 0.38 | N94: 0.38 | O94: 0.38 | P94: 0.38 | Q94: 0.38 | R94: 0.38 | S94: 0.38 | T94: 0.38 | Y94: Window | Z94: 0.2<=pf<0.5 | AA94: 2 | AB94: 0.48 | AC94: 0.48 | AD94: 0.45 | AE94: 0.48 | AF94: 0.48 | AG94: 0.45 | AH94: 0.48 | AI94: 0.48 | AJ94: 0.45 | AK94: 0.48 | AL94: 0.48 | AM94: 0.45
F95: Window | G95: Metal Frame, fixed | H95: 3 | K95: 0.31 | N95: 0.31 | Q95: 0.31 | T95: 0.31 | Y95: Window | Z95: 0.2<=pf<0.5 | AA95: 3 | AD95: 0.45 | AG95: 0.45 | AJ95: 0.45 | AM95: 0.45
F96: Window | G96: Metal Frame, operable | H96: 1 | I96: 0.36 | J96: 0.36 | K96: 0.36 | L96: 0.36 | M96: 0.36 | N96: 0.36 | O96: 0.36 | P96: 0.36 | Q96: 0.36 | R96: 0.36 | S96: 0.36 | T96: 0.36 | Y96: Window | Z96: pf>=0.5 | AA96: 1 | AB96: =AB90*AB97/AB91 -> 0.56 | AC96: =AC90*AC97/AC91 -> 0.56 | AD96: 0.6 | AE96: =AE90*AE97/AE91 -> 0.56 | AF96: =AF90*AF97/AF91 -> 0.56 | AG96: 0.6 | AH96: =AH90*AH97/AH91 -> 0.56 | AI96: =AI90*AI97/AI91 -> 0.56 | AJ96: 0.6 | AK96: =AK90*AK97/AK91 -> 0.56 | AL96: =AL90*AL97/AL91 -> 0.56 | AM96: 0.6
F97: Window | G97: Metal Frame, operable | H97: 2 | I97: 0.4 | J97: 0.4 | K97: 0.4 | L97: 0.4 | M97: 0.4 | N97: 0.4 | O97: 0.4 | P97: 0.4 | Q97: 0.4 | R97: 0.4 | S97: 0.4 | T97: 0.4 | Y97: Window | Z97: pf>=0.5 | AA97: 2 | AB97: 0.64 | AC97: 0.64 | AD97: 0.6 | AE97: 0.64 | AF97: 0.64 | AG97: 0.6 | AH97: 0.64 | AI97: 0.64 | AJ97: 0.6 | AK97: 0.64 | AL97: 0.64 | AM97: 0.6
F98: Window | G98: Metal Frame, operable | H98: 3 | K98: 0.38 | N98: 0.38 | Q98: 0.38 | T98: 0.38 | Y98: Window | Z98: pf>=0.5 | AA98: 3 | AD98: 0.6 | AG98: 0.6 | AJ98: 0.6 | AM98: 0.6
F99: Window | G99: metal entrance door | H99: 1 | I99: 0.6 | J99: 0.6 | K99: 0.6 | L99: 0.6 | M99: 0.6 | N99: 0.6 | O99: 0.6 | P99: 0.6 | Q99: 0.6 | R99: 0.6 | S99: 0.6 | T99: 0.6 | Y99: Skylight | AA99: 1 | AB99: 0.35 | AC99: 0.35 | AD99: 0.32 | AE99: 0.35 | AF99: 0.35 | AG99: 0.32 | AH99: 0.35 | AI99: 0.35 | AJ99: 0.32 | AK99: 0.35 | AL99: 0.35 | AM99: 0.32
F100: Window | G100: metal entrance door | H100: 2 | I100: 0.6 | J100: 0.6 | K100: 0.6 | L100: 0.6 | M100: 0.6 | N100: 0.6 | O100: 0.6 | P100: 0.6 | Q100: 0.6 | R100: 0.6 | S100: 0.6 | T100: 0.6 | Y100: Skylight | AA100: 2 | AB100: 0.35 | AC100: 0.35 | AD100: 0.32 | AE100: 0.35 | AF100: 0.35 | AG100: 0.32 | AH100: 0.35 | AI100: 0.35 | AJ100: 0.32 | AK100: 0.35 | AL100: 0.35 | AM100: 0.32
F101: Window | G101: metal entrance door | H101: 3 | K101: 0.6 | N101: 0.6 | Q101: 0.6 | T101: 0.6 | Y101: Skylight | AA101: 3 | AD101: 0.32 | AG101: 0.32 | AJ101: 0.32 | AM101: 0.32
F103: Skylight | G103: all | H103: 1 | I103: 0.5 | J103: 0.5 | K103: 0.45 | L103: 0.5 | M103: 0.5 | N103: 0.45 | O103: 0.5 | P103: 0.5 | Q103: 0.45 | R103: 0.5 | S103: 0.5 | T103: 0.45 | Y103: N. Window | AA103: 1 | AB103: =AB$90*AB104/AB$91 -> 0.46375 | AC103: =AC90*AC104/AC91 -> 0.46375 | AD103: 0.53 | AE103: =AE90*AE104/AE91 -> 0.46375 | AF103: =AF90*AF104/AF91 -> 0.46375 | AG103: 0.53 | AH103: =AH$90*AH104/AH$91 -> 0.46375 | AI103: =AI90*AI104/AI91 -> 0.46375 | AJ103: 0.53 | AK103: =AK90*AK104/AK91 -> 0.46375 | AL103: =AL90*AL104/AL91 -> 0.46375 | AM103: 0.53
F104: Skylight | G104: all | H104: 2 | I104: 0.5 | J104: 0.5 | K104: 0.45 | L104: 0.5 | M104: 0.5 | N104: 0.45 | O104: 0.5 | P104: 0.5 | Q104: 0.45 | R104: 0.5 | S104: 0.5 | T104: 0.45 | Y104: N. Window | AA104: 2 | AB104: 0.53 | AC104: 0.53 | AD104: 0.53 | AE104: 0.53 | AF104: 0.53 | AG104: 0.53 | AH104: 0.53 | AI104: 0.53 | AJ104: 0.53 | AK104: 0.53 | AL104: 0.53 | AM104: 0.53
F105: Skylight | G105: all | H105: 3 | K105: 0.45 | N105: 0.45 | Q105: 0.45 | T105: 0.45 | Y105: N. Window | AA105: 3 | AD105: 0.53 | AG105: 0.53 | AJ105: 0.53 | AM105: 0.53
Y106: N. Window | Z106: 0.2<=pf<0.5 | AA106: 1 | AB106: =AB$90*AB107/AB$91 -> 0.5075 | AC106: =AC$90*AC107/AC$91 -> 0.5075 | AD106: 0.58 | AE106: =AE$90*AE107/AE$91 -> 0.5075 | AF106: =AF$90*AF107/AF$91 -> 0.5075 | AG106: 0.58 | AH106: =AH$90*AH107/AH$91 -> 0.5075 | AI106: =AI$90*AI107/AI$91 -> 0.5075 | AJ106: 0.58 | AK106: =AK$90*AK107/AK$91 -> 0.5075 | AL106: =AL$90*AL107/AL$91 -> 0.5075 | AM106: 0.58
Y107: N. Window | Z107: 0.2<=pf<0.5 | AA107: 2 | AB107: 0.58 | AC107: 0.58 | AD107: 0.58 | AE107: 0.58 | AF107: 0.58 | AG107: 0.58 | AH107: 0.58 | AI107: 0.58 | AJ107: 0.58 | AK107: 0.58 | AL107: 0.58 | AM107: 0.58
Y108: N. Window | Z108: 0.2<=pf<0.5 | AA108: 3 | AD108: 0.58 | AG108: 0.58 | AJ108: 0.58 | AM108: 0.58
Y109: N. Window | Z109: pf>=0.5 | AA109: 1 | AB109: =AB$90*AB110/AB$91 -> 0.56 | AC109: =AC$90*AC110/AC$91 -> 0.56 | AD109: 0.64 | AE109: =AE$90*AE110/AE$91 -> 0.56 | AF109: =AF$90*AF110/AF$91 -> 0.56 | AG109: 0.64 | AH109: =AH$90*AH110/AH$91 -> 0.56 | AI109: =AI$90*AI110/AI$91 -> 0.56 | AJ109: 0.64 | AK109: =AK$90*AK110/AK$91 -> 0.56 | AL109: =AL$90*AL110/AL$91 -> 0.56 | AM109: 0.64
Y110: N. Window | Z110: pf>=0.5 | AA110: 2 | AB110: 0.64 | AC110: 0.64 | AD110: 0.64 | AE110: 0.64 | AF110: 0.64 | AG110: 0.64 | AH110: 0.64 | AI110: 0.64 | AJ110: 0.64 | AK110: 0.64 | AL110: 0.64 | AM110: 0.64
Y111: N. Window | Z111: pf>=0.5 | AA111: 3 | AD111: 0.64 | AG111: 0.64 | AJ111: 0.64 | AM111: 0.64
A112: MAIN LOOKUPS
E113: Selected Group (1=Nres, 2=Res, 3= Mixed, 4=Not specified) ==> | F113: 1
E114: Calculation Type: 1=Building, 2=Refrigeration ==> | F114: =CalculationGroup -> 1 | J114: seattle also has swing and non-swing doors | W114: door type u-values | X114: same | Y114: diff -swing / non-swing
E115: Selected Zone (1=Zone 4c/5, 2=Zone 6, 3= Seattle) ==> | F115: =IF('TA1'!A3<=2,'TA1'!A3,IF('TA1'!A3=3,4,3)) -> 1 | J115: and two floor u-values (mass/steel joist vs wood/other) | W115: mtl bld & steel frame wall u-values | X115: same | Y115: diff
E116: Data Entered (0=no, 1=yes) ==> | F116: =IF('ENV-UA'!H113=0,0,1) -> 0 | J116: Glass U & SHGC is by 0-30 and >30 to 40% | W116: floor over air u-values | X116: same | Y116: state + wd frame
E117: Refrigeration Offset ==> | F117: =IF(CalcType=3,6,IF(CalcType=4,9,0)) -> 0
E118: Column # (idxU) ==> | G118: Not used 2015, Now action is in the Target U formulas. should return blank if nothing entered, warning if something entered but no zone/jurisdiction chosen, or the proper value
AR119: Not used in current forms
H120: Master Look Up Table of U-Values | AA120: Master Look Up Table of SHGC-Values
H121: Col Num ==> | I121: 1 | J121: 2 | K121: 3 | L121: 4 | M121: 5 | N121: 6 | O121: 7 | P121: 8 | Q121: 9 | R121: 10 | S121: 11 | T121: 12 | U121: 13 | V121: 14 | AA121: Col Num ==> | AB121: 1 | AC121: 2 | AD121: 3 | AE121: 4 | AF121: 5 | AG121: 6 | AH121: 7 | AI121: 8 | AJ121: 9 | AK121: 10 | AL121: 11 | AM121: 12 | AN121: 13 | AO121: 14
H122: Group ==> | I122: Nres | J122: Nres | K122: Nres | L122: Res | M122: Res | N122: Res | O122: Refg | P122: Refg | Q122: Refg | R122: Freeze | S122: Freeze | T122: Freeze | AA122: Group ==> | AB122: Nres | AC122: Nres | AD122: Nres | AE122: Res | AF122: Res | AG122: Res | AH122: Refg | AI122: Refg | AJ122: Refg | AK122: Freezer | AL122: Freezer | AM122: Freezer
B123: Component | C123: Item Name | F123: ="Comm" -> Comm | G123: ="Group R" -> Group R | H123: Zone ==> | I123: 1 | J123: 2 | K123: Seattle | L123: 1 | M123: 2 | N123: Seattle | O123: 1 | P123: 2 | Q123: Seattle | R123: 1 | S123: 2 | T123: Seattle | AA123: Zone ==> | AB123: 1 | AC123: 2 | AD123: Seattle | AE123: 1 | AF123: 2 | AG123: Seattle | AH123: 1 | AI123: 2 | AJ123: Seattle | AK123: 1 | AL123: 2 | AM123: Seattle | AR123: SHGC Multipliers
C124: Long | D124: Short | F124: Target U | G124: Target U | Z124: Target SHGC | AA124: Target SHGC | AR124: PF | AS124: non-North | AT124: North
B125: Window | C125: non-metal frame | D125: non-metal frm | E125: 1 | F125: =IF(AND(OR($B125="AGWall",$B125="BGWall"),SemiHt),"NR",INDEX(TargetUbyJurisdiction,$E125,IF($F$113=4,13,IF($F$115=4,14,$F$117+( 1-1)*3+idxZone)))) -> 0.3 | G125: =IF(AND(OR($B125="AGWall",$B125="BGWall"),SemiHt),"NR",IF(AND(OR(CalcType=3,CalcType=4),B125<>"Floor"),F125,INDEX(TargetUbyJurisdiction,$E125,IF($F$113=4,13,IF($F$115=4,14,$F$117+( IF(CalcType<=2,2,1)-1)*3+idxZone))))) -> 0.3 | I125: =VLOOKUP($H$80,$H$90:$Q$92,3,FALSE) -> 0.3 | J125: =VLOOKUP($H$80,$H$90:$Q$92,3,FALSE) -> 0.3 | K125: 0.3 | L125: =VLOOKUP($H$80,$H$90:$Q$92,5,FALSE) -> 0.3 | M125: =VLOOKUP($H$80,$H$90:$Q$92,6,FALSE) -> 0.3 | N125: 0.3 | O125: =VLOOKUP($H$80,$H$90:$Q$92,5,FALSE) -> 0.3 | P125: =VLOOKUP($H$80,$H$90:$Q$92,6,FALSE) -> 0.3 | Q125: 0.3 | R125: =VLOOKUP($H$80,$H$90:$Q$92,8,FALSE) -> 0.3 | S125: =VLOOKUP($H$80,$H$90:$Q$92,9,FALSE) -> 0.3 | T125: =VLOOKUP($H$80,$H$90:$Q$92,10,FALSE) -> 0.3 | U125: set occ. | V125: set zone | X125: Window | Y125: 1 | Z125: =INDEX(TargetSHGCbyJurisdiction,$Y125,IF($F$113=4,13,IF($F$115=4,14,$F$117+( 1-1)*3+idxZone))) -> 0.4 | AA125: =INDEX(TargetSHGCbyJurisdiction,$Y125,IF($F$113=4,13,IF($F$115=4,14,$F$117+( IF(CalcType<=2,2,1)-1)*3+idxZone))) -> 0.4 | AB125: =INDEX(AB90:AB92,$H$80) -> 0.4 | AC125: 0.4 | AD125: 0.35 | AE125: 0.4 | AF125: 0.4 | AG125: 0.35 | AH125: 0.4 | AI125: 0.4 | AJ125: 0.35 | AK125: 0.4 | AL125: 0.4 | AM125: 0.35 | AN125: set occ. | AO125: set zone | AR125: 0 | AS125: 1 | AT125: 1
B126: Window | C126: metal frame, fixed | D126: metal fix | E126: 2 | F126: 0.38 | G126: =IF(AND(OR($B126="AGWall",$B126="BGWall"),SemiHt),"NR",IF(AND(OR(CalcType=3,CalcType=4),B126<>"Floor"),F126,INDEX(TargetUbyJurisdiction,$E126,IF($F$113=4,13,IF($F$115=4,14,$F$117+( IF(CalcType<=2,2,1)-1)*3+idxZone))))) -> 0.38 | I126: =INDEX(I$93:I$95,$H$80) -> 0.38 | J126: =INDEX(J$93:J$95,$H$80) -> 0.38 | K126: 0.38 | L126: =INDEX(L$93:L$95,$H$80) -> 0.38 | M126: =INDEX(M$93:M$95,$H$80) -> 0.38 | N126: 0.38 | O126: =INDEX(O$93:O$95,$H$80) -> 0.38 | P126: =INDEX(P$93:P$95,$H$80) -> 0.38 | Q126: 0.38 | R126: =INDEX(R$93:R$95,$H$80) -> 0.38 | S126: =INDEX(S$93:S$95,$H$80) -> 0.38 | T126: =INDEX(T$93:T$95,$H$80) -> 0.38 | U126: set occ. | V126: set zone | X126: Window 0.2<=pf<0.5 | Y126: 2 | Z126: =INDEX(TargetSHGCbyJurisdiction,Y126,IF($F$113=4,13,IF($F$115=4,14,$F$117+( 1-1)*3+idxZone))) -> 0.48 | AA126: 0.48 | AB126: =INDEX(AB93:AB95,$H$80) -> 0.48 | AC126: 0.48 | AD126: 0.45 | AE126: 0.48 | AF126: 0.48 | AG126: 0.45 | AH126: 0.48 | AI126: 0.48 | AJ126: 0.45 | AK126: 0.48 | AL126: 0.48 | AM126: 0.45 | AN126: set occ. | AO126: set zone | AR126: 0.100001 | AS126: 0.91 | AT126: 0.95
B127: Window | C127: metal frame, operable | D127: metal opp | E127: 3 | F127: 0.4 | G127: 0.4 | I127: =INDEX(I$96:I$98,$H$80) -> 0.4 | J127: =INDEX(J$96:J$98,$H$80) -> 0.4 | K127: 0.4 | L127: =INDEX(L$96:L$98,$H$80) -> 0.4 | M127: =INDEX(M$96:M$98,$H$80) -> 0.4 | N127: 0.4 | O127: =INDEX(O$96:O$98,$H$80) -> 0.4 | P127: =INDEX(P$96:P$98,$H$80) -> 0.4 | Q127: 0.4 | R127: =INDEX(R$96:R$98,$H$80) -> 0.4 | S127: =INDEX(S$96:S$98,$H$80) -> 0.4 | T127: =INDEX(T$96:T$98,$H$80) -> 0.4 | U127: set occ. | V127: set zone | X127: Window pf>0.5 | Y127: 3 | Z127: 0.64 | AA127: 0.64 | AB127: =INDEX(AB96:AB98,$H$80) -> 0.64 | AC127: 0.64 | AD127: 0.6 | AE127: 0.64 | AF127: 0.64 | AG127: 0.6 | AH127: 0.64 | AI127: 0.64 | AJ127: 0.6 | AK127: 0.64 | AL127: 0.64 | AM127: 0.6 | AN127: set occ. | AO127: set zone | AR127: 0.200001 | AS127: 0.82 | AT127: 0.91
B128: Window | C128: metal entrance door | D128: metal frm door | E128: 4 | F128: 0.6 | G128: 0.6 | I128: 0.6 | J128: 0.6 | K128: 0.6 | L128: 0.6 | M128: 0.6 | N128: 0.6 | O128: 0.6 | P128: 0.6 | Q128: 0.6 | R128: 0.6 | S128: 0.6 | T128: 0.6 | U128: set occ. | V128: set zone | X128: Skylight | Y128: 4 | Z128: 0.35 | AA128: 0.35 | AB128: =INDEX(AB99:AB101,$H$80) -> 0.35 | AC128: 0.35 | AD128: 0.32 | AE128: 0.35 | AF128: 0.35 | AG128: 0.32 | AH128: 0.35 | AI128: 0.35 | AJ128: 0.32 | AK128: 0.35 | AL128: 0.35 | AM128: 0.32 | AN128: set occ. | AO128: set zone | AR128: 0.300001 | AS128: 0.74 | AT128: 0.87
B129: Skylight | C129: All Types | D129: all types | E129: 5 | F129: 0.5 | G129: 0.5 | I129: 0.5 | J129: 0.5 | K129: 0.45 | L129: 0.5 | M129: 0.5 | N129: 0.45 | O129: 0.5 | P129: 0.5 | Q129: 0.45 | R129: 0.5 | S129: 0.5 | T129: 0.45 | U129: set occ. | V129: set zone | X129: N Window | Y129: 5 | Z129: 0.53 | AA129: 0.53 | AB129: =INDEX(AB103:AB105,$H$80) -> 0.53 | AC129: 0.53 | AD129: 0.53 | AE129: 0.53 | AF129: 0.53 | AG129: 0.53 | AH129: 0.53 | AI129: 0.53 | AJ129: 0.53 | AK129: 0.53 | AL129: 0.53 | AM129: 0.53 | AN129: set occ. | AO129: set zone | AR129: 0.400001 | AS129: 0.67 | AT129: 0.84
B130: Door | C130: Swinging | D130: swing | E130: 6 | F130: 0.37 | G130: 0.37 | I130: 0.37 | J130: 0.37 | K130: 0.37 | L130: 0.37 | M130: 0.37 | N130: 0.37 | O130: 0.039 | P130: 0.039 | Q130: 0.039 | R130: 0.03 | S130: 0.03 | T130: 0.03 | U130: set occ. | V130: set zone | X130: N Window 0.2<=pf<0.5 | Y130: 6 | Z130: 0.58 | AA130: 0.58 | AB130: =INDEX(AB106:AB108,$H$80) -> 0.58 | AC130: 0.58 | AD130: 0.58 | AE130: 0.58 | AF130: 0.58 | AG130: 0.58 | AH130: 0.58 | AI130: 0.58 | AJ130: 0.58 | AK130: 0.58 | AL130: 0.58 | AM130: 0.58 | AN130: set occ. | AO130: set zone | AR130: 0.500001 | AS130: 0.61 | AT130: 0.81
B131: Door | C131: Roll-up or sliding | D131: roll/slide | E131: 7 | F131: 0.34 | G131: 0.34 | I131: 0.34 | J131: 0.34 | K131: 0.34 | L131: 0.34 | M131: 0.34 | N131: 0.34 | O131: 0.039 | P131: 0.039 | Q131: 0.039 | R131: 0.03 | S131: 0.03 | T131: 0.03 | U131: set occ. | V131: set zone | X131: N Window pf>0.5 | Y131: 7 | Z131: 0.64 | AA131: 0.64 | AB131: =INDEX(AB109:AB111,$H$80) -> 0.64 | AC131: 0.64 | AD131: 0.64 | AE131: 0.64 | AF131: 0.64 | AG131: 0.64 | AH131: 0.64 | AI131: 0.64 | AJ131: 0.64 | AK131: 0.64 | AL131: 0.64 | AM131: 0.64 | AN131: set occ. | AO131: set zone | AR131: 0.600001 | AS131: 0.56 | AT131: 0.78
B132: Roof | D132: above deck | E132: 8 | F132: 0.027 | G132: 0.027 | I132: 0.027 | J132: 0.027 | K132: 0.026 | L132: 0.027 | M132: 0.027 | N132: 0.026 | O132: 0.039 | P132: 0.039 | Q132: 0.039 | R132: 0.03 | S132: 0.03 | T132: 0.03 | U132: set occ. | V132: set zone | AR132: 0.700001 | AS132: 0.51 | AT132: 0.76
B133: Roof | D133: metal bldg | E133: 9 | F133: 0.031 | G133: 0.031 | I133: 0.031 | J133: 0.031 | K133: 0.027 | L133: 0.031 | M133: 0.031 | N133: 0.027 | O133: 0.039 | P133: 0.039 | Q133: 0.039 | R133: 0.03 | S133: 0.03 | T133: 0.03 | U133: set occ. | V133: set zone | AR133: 0.800001 | AS133: 0.47 | AT133: 0.75
B134: Roof | D134: attic/other | E134: 10 | F134: 0.021 | G134: 0.021 | I134: 0.021 | J134: 0.021 | K134: 0.021 | L134: 0.021 | M134: 0.021 | N134: 0.021 | O134: 0.039 | P134: 0.039 | Q134: 0.039 | R134: 0.03 | S134: 0.03 | T134: 0.03 | U134: set occ. | V134: set zone | AR134: 0.90001 | AS134: 0.44 | AT134: 0.73
B135: Roof | D135: joist/single | E135: 11 | F135: 0.027 | G135: 0.027 | I135: 0.027 | J135: 0.027 | K135: 0.027 | L135: 0.027 | M135: 0.027 | N135: 0.027 | O135: 0.039 | P135: 0.039 | Q135: 0.039 | R135: 0.03 | S135: 0.03 | T135: 0.03 | U135: set occ. | V135: set zone | X135: sea has 0.056 for int ins | AR135: 1
B136: AGWall | D136: mass | E136: 12 | F136: 0.104 | G136: 0.104 | I136: 0.104 | J136: 0.104 | K136: 0.057 | L136: 0.078 | M136: 0.078 | N136: 0.057 | O136: 0.039 | P136: 0.039 | Q136: 0.039 | R136: 0.03 | S136: 0.03 | T136: 0.03 | U136: set occ. | V136: set zone
B137: AGWall | D137: metal bldg | E137: 13 | F137: 0.052 | G137: 0.052 | I137: 0.052 | J137: 0.052 | K137: 0.052 | L137: 0.052 | M137: 0.052 | N137: 0.052 | O137: 0.039 | P137: 0.039 | Q137: 0.039 | R137: 0.03 | S137: 0.03 | T137: 0.03 | U137: set occ. | V137: set zone | X137: sea mtl bld and stl are diff
B138: AGWall | D138: steel frame | E138: 14 | F138: 0.055 | G138: 0.055 | I138: 0.055 | J138: 0.055 | K138: 0.055 | L138: 0.055 | M138: 0.055 | N138: 0.055 | O138: 0.039 | P138: 0.039 | Q138: 0.039 | R138: 0.03 | S138: 0.03 | T138: 0.03 | U138: set occ. | V138: set zone
B139: AGWall | D139: wood frame/other | E139: 15 | F139: 0.054 | G139: 0.054 | I139: 0.054 | J139: 0.054 | K139: 0.051 | L139: 0.054 | M139: 0.054 | N139: 0.051 | O139: 0.039 | P139: 0.039 | Q139: 0.039 | R139: 0.03 | S139: 0.03 | T139: 0.03 | U139: set occ. | V139: set zone
B140: AGWall | C140: transfer slab | D140: transfer slab | E140: 16 | F140: 0.2 | G140: 0.2 | I140: 0.2 | J140: 0.2 | K140: 0.2 | L140: 0.2 | M140: 0.2 | N140: 0.2 | O140: 0.039 | P140: 0.039 | Q140: 0.039 | R140: 0.03 | S140: 0.03 | T140: 0.03 | U140: set occ. | V140: set zone | X140: sea has 0.025 wd frm
B141: AGWall | C141: cmu, same as mass but with corefill then okay in z1 | D141: CMU w/ Ins. Cores | E141: 17 | F141: 0.25 | G141: 0.25 | H141: Not used | I141: 0.25 | J141: 0.25 | K141: 0.057 | L141: 0.078 | M141: 0.078 | N141: 0.057 | O141: 0.039 | P141: 0.039 | Q141: 0.039 | R141: 0.03 | S141: 0.03 | T141: 0.03 | U141: set occ. | V141: set zone
B142: Floor | C142: Mass | D142: mass | E142: 18 | F142: 0.031 | G142: 0.031 | I142: 0.031 | J142: 0.031 | K142: 0.029 | L142: 0.031 | M142: 0.031 | N142: 0.029 | O142: 0.031 | P142: 0.031 | Q142: 0.029 | R142: 0.035 | S142: 0.035 | T142: 0.035 | U142: set occ. | V142: set zone
B143: Floor | C143: Joist/framing | D143: joist/frame | E143: 19 | F143: 0.029 | G143: 0.029 | I143: 0.029 | J143: 0.029 | K143: 0.029 | L143: 0.029 | M143: 0.029 | N143: 0.029 | O143: 0.029 | P143: 0.029 | Q143: 0.029 | R143: 0.035 | S143: 0.035 | T143: 0.035 | U143: set occ. | V143: set zone
B144: Floor | C144: Wood joist/framing | D144: Wood joist/framing | E144: 20 | F144: 0 | G144: 0 | H144: seattle only | K144: 0.025 | N144: 0.025 | Q144: 0.025 | R144: 0.035 | S144: 0.035 | T144: 0.035 | U144: set occ. | V144: set zone
B145: Floor | C145: Metal joist/framing | D145: Metal joist/framing | E145: 21 | F145: 0 | G145: 0 | H145: seattle only | K145: 0.029 | N145: 0.029 | Q145: 0.029 | R145: 0.035 | S145: 0.035 | T145: 0.035 | U145: set occ. | V145: set zone
B146: Floor | D146: Slab | E146: 22 | F146: 0.54 | G146: 0.54 | H146: All floors U0.029 - all zones | I146: 0.54 | J146: 0.54 | K146: 0.54 | L146: 0.54 | M146: 0.52 | N146: 0.54 | O146: 0.54 | P146: 0.52 | Q146: 0.54 | R146: 0.035 | S146: 0.035 | T146: 0.035 | U146: set occ. | V146: set zone
B147: Floor | D147: Heated Slab | E147: 23 | F147: 0.55 | G147: 0.55 | I147: 0.55 | J147: 0.55 | K147: 0.55 | L147: 0.55 | M147: 0.55 | N147: 0.55 | O147: 0.55 | P147: 0.55 | Q147: 0.55 | R147: 0.035 | S147: 0.035 | T147: 0.035 | U147: set occ. | V147: set zone
B148: BGWall | D148: mass | E148: 24 | F148: 0.104 | G148: 0.104 | I148: 0.104 | J148: 0.104 | K148: 0.07 | L148: 0.078 | M148: 0.078 | N148: 0.07 | O148: 0.039 | P148: 0.039 | Q148: 0.039 | R148: 0.03 | S148: 0.03 | T148: 0.03 | U148: set occ. | V148: set zone
B149: BGWall | D149: metal bldg | E149: 25 | F149: 0.052 | G149: 0.052 | H149: Not used | I149: 0.052 | J149: 0.052 | K149: 0.07 | L149: 0.052 | M149: 0.044 | N149: 0.07 | O149: 0.039 | P149: 0.039 | Q149: 0.039 | R149: 0.03 | S149: 0.03 | T149: 0.03 | U149: set occ. | V149: set zone
B150: BGWall | D150: steel frame | E150: 26 | F150: 0.055 | G150: 0.055 | H150: Not used | I150: 0.055 | J150: 0.049 | K150: 0.07 | L150: 0.055 | M150: 0.044 | N150: 0.07 | O150: 0.039 | P150: 0.039 | Q150: 0.039 | R150: 0.03 | S150: 0.03 | T150: 0.03 | U150: set occ. | V150: set zone | AA150: LABELS
B151: BGWall | D151: wood frame/other | E151: 27 | F151: 0.054 | G151: 0.054 | H151: Not used | I151: 0.054 | J151: 0.051 | K151: 0.07 | L151: 0.054 | M151: 0.044 | N151: 0.07 | O151: 0.039 | P151: 0.039 | Q151: 0.039 | R151: 0.03 | S151: 0.03 | T151: 0.03 | U151: set occ. | V151: set zone | AB151: Nres | AC151: Nres | AD151: Nres | AE151: Res | AF151: Res | AG151: Res | AH151: Refg | AI151: Refg | AJ151: Refg | AK151: Freezer | AL151: Freezer | AM151: Freezer
B152: MAXGlass | C152: MAXGlass | D152: MAXGlass | E152: 28 | F152: 0.3 | G152: 0.3 | I152: =IF(OR(hpfwin,dlz50pct,dlz25pct,hpmwin),0.4,0.3) -> 0.3 | J152: 0.3 | K152: 0.3 | L152: 0.3 | M152: 0.3 | N152: 0.3 | O152: 0.3 | P152: 0.3 | Q152: 0.3 | R152: 0.3 | S152: 0.3 | T152: 0.3 | U152: 0 | V152: 0 | Z152: =F123 -> Comm | AA152: =G123 -> Group R | AB152: 1 | AC152: 2 | AD152: Seattle | AE152: 1 | AF152: 2 | AG152: Seattle | AH152: 1 | AI152: 2 | AJ152: Seattle | AK152: 1 | AL152: 2 | AM152: Seattle
B153: MAXskylight | C153: MAXskylight | D153: MAXskylight | E153: 29 | F153: 0.05 | G153: 0.05 | I153: 0.05 | J153: 0.05 | K153: 0.05 | L153: 0.05 | M153: 0.05 | N153: 0.05 | O153: 0.05 | P153: 0.05 | Q153: 0.05 | R153: 0.05 | S153: 0.05 | T153: 0.05 | U153: 0 | V153: 0 | Z153: SHGC | AA153: SHGC
X154: Window | Y154: 1 | Z154: =INDEX( $AB$154:$AP$160,$Y154,IF($F$113=4,13,IF($F$115=4,14,$F$117+( 1-1)*3+idxZone))) -> 0.40 | AA154: =INDEX( $AB$154:$AP$160,$Y154,IF($F$113=4,13,IF($F$115=4,14,$F$117+( 2-1)*3+idxZone))) -> 0.40 | AB154: =TEXT(AB125,"0.00#") -> 0.40 | AC154: 0.40 | AD154: 0.35 | AE154: 0.40 | AF154: 0.40 | AG154: 0.35 | AH154: 0.40 | AI154: 0.40 | AJ154: 0.35 | AK154: 0.40 | AL154: 0.40 | AM154: 0.35 | AN154: set occ. | AO154: set zone
H155: Group ==> | I155: Nres | J155: Nres | K155: Nres | L155: Res | M155: Res | N155: Res | O155: Refg | P155: Refg | Q155: Refg | R155: Freeze | S155: Freeze | T155: Freeze | X155: Window 0.2<=pf<0.5 | Y155: 2 | Z155: 0.48 | AA155: 0.48 | AB155: =TEXT(AB126,"0.00#") -> 0.48 | AC155: 0.48 | AD155: 0.45 | AE155: 0.48 | AF155: 0.48 | AG155: 0.45 | AH155: 0.48 | AI155: 0.48 | AJ155: 0.45 | AK155: 0.48 | AL155: 0.48 | AM155: 0.45 | AN155: set occ. | AO155: set zone
B156: Component | C156: Item Name | F156: =F123 -> Comm | G156: =G123 -> Group R | H156: Zone ==> | I156: 1 | J156: 2 | K156: Seattle | L156: 1 | M156: 2 | N156: Seattle | O156: 1 | P156: 2 | Q156: Seattle | R156: 1 | S156: 2 | T156: Seattle | X156: Window pf>0.5 | Y156: 3 | Z156: 0.64 | AA156: 0.64 | AB156: =TEXT(AB127,"0.00#") -> 0.64 | AC156: 0.64 | AD156: 0.60 | AE156: 0.64 | AF156: 0.64 | AG156: 0.60 | AH156: 0.64 | AI156: 0.64 | AJ156: 0.60 | AK156: 0.64 | AL156: 0.64 | AM156: 0.60 | AN156: set occ. | AO156: set zone
C157: Long | D157: Short | F157: Target Label | G157: Target Label | H157: Code | X157: Skylight | Y157: 4 | Z157: 0.35 | AA157: 0.35 | AB157: =TEXT(AB128,"0.00#") -> 0.35 | AC157: 0.35 | AD157: 0.32 | AE157: 0.35 | AF157: 0.35 | AG157: 0.32 | AH157: 0.35 | AI157: 0.35 | AJ157: 0.32 | AK157: 0.35 | AL157: 0.35 | AM157: 0.32 | AN157: set occ. | AO157: set zone
B158: =B125 -> Window | C158: non-metal frame | D158: non-metal frm | E158: 1 | F158: =IF(AND(OR($B158="AGWall",$B158="BGWall"),SemiHt),"NR",INDEX(TargetLabelByJurisdiction,$E158,IF($F$113=4,13,IF($F$115=4,14,$F$117+( 1-1)*3+idxZone)))) -> U-0.30 | G158: =IF(AND(OR($B158="AGWall",$B158="BGWall"),SemiHt),"NR",INDEX(TargetLabelByJurisdiction,$E158,IF($F$113=4,13,IF($F$115=4,14,$F$117+( 2-1)*3+idxZone)))) -> U-0.30 | H158: nmfrm | I158: =IF(I125<=0,"NR",CONCATENATE("U-",TEXT(I125,"0.00#"))) -> U-0.30 | J158: =IF(J125<=0,"NR",CONCATENATE("U-",TEXT(J125,"0.00#"))) -> U-0.30 | K158: U-0.30 | L158: U-0.30 | M158: U-0.30 | N158: U-0.30 | O158: =IF(O125<=0,"NR",CONCATENATE("U-",TEXT(O125,"0.00#"))) -> U-0.30 | P158: U-0.30 | Q158: U-0.30 | R158: U-0.30 | S158: U-0.30 | T158: U-0.30 | U158: set occ. | V158: set zone | X158: N Window | Y158: 5 | Z158: 0.53 | AA158: 0.53 | AB158: =TEXT(AB129,"0.00#") -> 0.53 | AC158: 0.53 | AD158: 0.53 | AE158: 0.53 | AF158: 0.53 | AG158: 0.53 | AH158: 0.53 | AI158: 0.53 | AJ158: 0.53 | AK158: 0.53 | AL158: 0.53 | AM158: 0.53 | AN158: set occ. | AO158: set zone
B159: Window | C159: metal frame, fixed | D159: metal fix | E159: 2 | F159: U-0.38 | G159: U-0.38 | H159: mfrm | I159: =IF(I126<=0,"NR",CONCATENATE("U-",TEXT(I126,"0.00#"))) -> U-0.38 | J159: U-0.38 | K159: U-0.38 | L159: U-0.38 | M159: U-0.38 | N159: U-0.38 | O159: U-0.38 | P159: U-0.38 | Q159: U-0.38 | R159: U-0.38 | S159: U-0.38 | T159: U-0.38 | U159: set occ. | V159: set zone | X159: N Window 0.2<=pf<0.5 | Y159: 6 | Z159: 0.58 | AA159: 0.58 | AB159: =TEXT(AB130,"0.00#") -> 0.58 | AC159: 0.58 | AD159: 0.58 | AE159: 0.58 | AF159: 0.58 | AG159: 0.58 | AH159: 0.58 | AI159: 0.58 | AJ159: 0.58 | AK159: 0.58 | AL159: 0.58 | AM159: 0.58 | AN159: set occ. | AO159: set zone
B160: Window | C160: metal frame, operable | D160: metal opp | E160: 3 | F160: U-0.40 | G160: U-0.40 | H160: med | I160: =IF(I127<=0,"NR",CONCATENATE("U-",TEXT(I127,"0.00#"))) -> U-0.40 | J160: U-0.40 | K160: U-0.40 | L160: U-0.40 | M160: U-0.40 | N160: U-0.40 | O160: U-0.40 | P160: U-0.40 | Q160: U-0.40 | R160: U-0.40 | S160: U-0.40 | T160: U-0.40 | U160: set occ. | V160: set zone | X160: N Window pf>0.5 | Y160: 7 | Z160: 0.64 | AA160: 0.64 | AB160: =TEXT(AB131,"0.00#") -> 0.64 | AC160: 0.64 | AD160: 0.64 | AE160: 0.64 | AF160: 0.64 | AG160: 0.64 | AH160: 0.64 | AI160: 0.64 | AJ160: 0.64 | AK160: 0.64 | AL160: 0.64 | AM160: 0.64 | AN160: set occ. | AO160: set zone
B161: Window | C161: metal entrance door | D161: metal frm door | E161: 4 | F161: U-0.60 | G161: U-0.60 | H161: nc | I161: =IF(I128<=0,"NR",CONCATENATE("U-",TEXT(I128,"0.00#"))) -> U-0.60 | J161: U-0.60 | K161: U-0.60 | L161: U-0.60 | M161: U-0.60 | N161: U-0.60 | O161: U-0.60 | P161: U-0.60 | Q161: U-0.60 | R161: U-0.60 | S161: U-0.60 | T161: U-0.60 | U161: set occ. | V161: set zone
B162: Skylight | C162: All Types | D162: all types | E162: 5 | F162: U-0.50 | G162: U-0.50 | H162: wc | I162: =IF(I129<=0,"NR",CONCATENATE("U-",TEXT(I129,"0.00#"))) -> U-0.50 | J162: U-0.50 | K162: U-0.45 | L162: U-0.50 | M162: U-0.50 | N162: U-0.45 | O162: U-0.50 | P162: U-0.50 | Q162: U-0.45 | R162: U-0.50 | S162: U-0.50 | T162: U-0.45 | U162: set occ. | V162: set zone
B163: Door | C163: Swinging | D163: swing | E163: 6 | F163: U-0.37 | G163: U-0.37 | H163: dr | I163: =IF(I130<=0,"NR",CONCATENATE("U-",TEXT(I130,"0.00#"))) -> U-0.37 | J163: U-0.37 | K163: U-0.37 | L163: U-0.37 | M163: U-0.37 | N163: U-0.37 | O163: =IF(O130<=0,"NR",CONCATENATE("U-",TEXT(O130,"0.000#"))) -> U-0.039 | P163: U-0.039 | Q163: U-0.039 | R163: U-0.030 | S163: U-0.030 | T163: U-0.030 | U163: set occ. | V163: set zone
B164: Door | C164: Roll-up or sliding | D164: roll/slide | E164: 7 | F164: U-0.34 | G164: U-0.34 | I164: =IF(I131<=0,"NR",CONCATENATE("U-",TEXT(I131,"0.00#"))) -> U-0.34 | J164: U-0.34 | K164: U-0.34 | L164: U-0.34 | M164: U-0.34 | N164: U-0.34 | O164: U-0.039 | P164: U-0.039 | Q164: U-0.039 | R164: U-0.030 | S164: U-0.030 | T164: U-0.030 | U164: set occ. | V164: set zone
B165: Roof | C165: 0 | D165: above deck | E165: 8 | F165: U-0.027 | G165: U-0.027 | I165: =IF(I132<=0,"NR",CONCATENATE("U-",TEXT(I132,"0.00#"))) -> U-0.027 | J165: U-0.027 | K165: U-0.026 | L165: U-0.027 | M165: U-0.027 | N165: U-0.026 | O165: U-0.039 | P165: U-0.039 | Q165: U-0.039 | R165: U-0.03 | S165: U-0.03 | T165: U-0.03 | U165: set occ. | V165: set zone
B166: Roof | C166: 0 | D166: metal bldg | E166: 9 | F166: U-0.031 | G166: U-0.031 | I166: =IF(I133<=0,"NR",CONCATENATE("U-",TEXT(I133,"0.00#"))) -> U-0.031 | J166: U-0.031 | K166: U-0.027 | L166: U-0.031 | M166: U-0.031 | N166: U-0.027 | O166: U-0.039 | P166: U-0.039 | Q166: U-0.039 | R166: U-0.03 | S166: U-0.03 | T166: U-0.03 | U166: set occ. | V166: set zone
B167: Roof | C167: 0 | D167: attic/other | E167: 10 | F167: U-0.021 | G167: U-0.021 | I167: =IF(I134<=0,"NR",CONCATENATE("U-",TEXT(I134,"0.00#"))) -> U-0.021 | J167: U-0.021 | K167: U-0.021 | L167: U-0.021 | M167: U-0.021 | N167: U-0.021 | O167: U-0.039 | P167: U-0.039 | Q167: U-0.039 | R167: U-0.03 | S167: U-0.03 | T167: U-0.03 | U167: set occ. | V167: set zone
B168: Roof | C168: 0 | D168: joist/single | E168: 11 | F168: U-0.027 | G168: U-0.027 | I168: =IF(I135<=0,"NR",CONCATENATE("U-",TEXT(I135,"0.00#"))) -> U-0.027 | J168: U-0.027 | K168: U-0.027 | L168: U-0.027 | M168: U-0.027 | N168: U-0.027 | O168: U-0.039 | P168: U-0.039 | Q168: U-0.039 | R168: U-0.03 | S168: U-0.03 | T168: U-0.03 | U168: set occ. | V168: set zone
B169: AGWall | C169: 0 | D169: mass | E169: 12 | F169: U-0.104 | G169: U-0.078 | I169: =IF(I136<=0,"NR",CONCATENATE("U-",TEXT(I136,"0.00#"))) -> U-0.104 | J169: U-0.104 | K169: U-0.057 | L169: U-0.078 | M169: U-0.078 | N169: U-0.057 | O169: U-0.039 | P169: U-0.039 | Q169: U-0.039 | R169: U-0.03 | S169: U-0.03 | T169: U-0.03 | U169: set occ. | V169: set zone
B170: AGWall | C170: 0 | D170: metal bldg | E170: 13 | F170: U-0.052 | G170: U-0.052 | I170: =IF(I137<=0,"NR",CONCATENATE("U-",TEXT(I137,"0.00#"))) -> U-0.052 | J170: U-0.052 | K170: U-0.052 | L170: U-0.052 | M170: U-0.052 | N170: U-0.052 | O170: U-0.039 | P170: U-0.039 | Q170: U-0.039 | R170: U-0.03 | S170: U-0.03 | T170: U-0.03 | U170: set occ. | V170: set zone
B171: AGWall | C171: 0 | D171: steel frame | E171: 14 | F171: U-0.055 | G171: U-0.055 | I171: =IF(I138<=0,"NR",CONCATENATE("U-",TEXT(I138,"0.00#"))) -> U-0.055 | J171: U-0.055 | K171: U-0.055 | L171: U-0.055 | M171: U-0.055 | N171: U-0.055 | O171: U-0.039 | P171: U-0.039 | Q171: U-0.039 | R171: U-0.03 | S171: U-0.03 | T171: U-0.03 | U171: set occ. | V171: set zone
B172: AGWall | C172: 0 | D172: wood frame/other | E172: 15 | F172: U-0.054 | G172: U-0.054 | I172: =IF(I139<=0,"NR",CONCATENATE("U-",TEXT(I139,"0.00#"))) -> U-0.054 | J172: U-0.054 | K172: U-0.051 | L172: U-0.054 | M172: U-0.054 | N172: U-0.051 | O172: U-0.039 | P172: U-0.039 | Q172: U-0.039 | R172: U-0.03 | S172: U-0.03 | T172: U-0.03 | U172: set occ. | V172: set zone
B173: AGWall | C173: transfer slab | D173: transfer slab | E173: 16 | F173: U-0.20 | G173: U-0.20 | I173: =IF(I140<=0,"NR",CONCATENATE("U-",TEXT(I140,"0.00#"))) -> U-0.20 | J173: U-0.20 | K173: U-0.20 | L173: U-0.20 | M173: U-0.20 | N173: U-0.20 | O173: U-0.039 | P173: U-0.039 | Q173: U-0.039 | R173: U-0.03 | S173: U-0.03 | T173: U-0.03 | U173: set occ. | V173: set zone
B174: AGWall | C174: cmu, same as mass but with corefill then okay in z1 | D174: CMU w/ Ins. Cores | E174: 17 | F174: U-0.25 | G174: U-0.078 | I174: =IF(I141<=0,"NR",CONCATENATE("U-",TEXT(I141,"0.00#"))) -> U-0.25 | J174: U-0.25 | K174: U-0.057 | L174: U-0.078 | M174: U-0.078 | N174: U-0.057 | O174: U-0.039 | P174: U-0.039 | Q174: U-0.039 | R174: U-0.03 | S174: U-0.03 | T174: U-0.03 | U174: set occ. | V174: set zone
B175: Floor | C175: Mass | D175: mass | E175: 18 | F175: U-0.031 | G175: U-0.031 | I175: =IF(I142<=0,"NR",CONCATENATE("U-",TEXT(I142,"0.00#"))) -> U-0.031 | J175: U-0.031 | K175: U-0.029 | L175: U-0.031 | M175: U-0.031 | N175: U-0.029 | O175: U-0.031 | P175: U-0.031 | Q175: U-0.029 | R175: U-0.035 | S175: U-0.035 | T175: U-0.035 | U175: set occ. | V175: set zone
B176: Floor | C176: Joist/framing | D176: joist/frame | E176: 19 | F176: U-0.029 | G176: U-0.029 | I176: =IF(I143<=0,"NR",CONCATENATE("U-",TEXT(I143,"0.00#"))) -> U-0.029 | J176: U-0.029 | K176: U-0.029 | L176: U-0.029 | M176: U-0.029 | N176: U-0.029 | O176: U-0.029 | P176: U-0.029 | Q176: U-0.029 | R176: U-0.035 | S176: U-0.035 | T176: U-0.035 | U176: set occ. | V176: set zone
B177: Floor | C177: Wood joist/framing | D177: Wood joist/framing | E177: 20 | F177: NR | G177: NR | I177: =IF(I144<=0,"NR",CONCATENATE("U-",TEXT(I144,"0.00#"))) -> NR | J177: NR | K177: U-0.025 | L177: NR | M177: NR | N177: U-0.025 | O177: NR | P177: NR | Q177: U-0.025 | R177: U-0.035 | S177: U-0.035 | T177: U-0.035 | U177: set occ. | V177: set zone
B178: Floor | C178: Metal joist/framing | D178: Metal joist/framing | E178: 21 | F178: NR | G178: NR | I178: =IF(I145<=0,"NR",CONCATENATE("U-",TEXT(I145,"0.00#"))) -> NR | J178: NR | K178: U-0.029 | L178: NR | M178: NR | N178: U-0.029 | O178: NR | P178: NR | Q178: U-0.029 | R178: U-0.035 | S178: U-0.035 | T178: U-0.035 | U178: set occ. | V178: set zone
B179: Floor | C179: 0 | D179: Slab | E179: 22 | F179: F-0.54 | G179: F-0.54 | I179: =IF(I146<=0,"NR",CONCATENATE("F-",TEXT(I146,"0.00#"))) -> F-0.54 | J179: =IF(J146<=0,"NR",CONCATENATE("F-",TEXT(J146,"0.00#"))) -> F-0.54 | K179: F-0.54 | L179: F-0.54 | M179: F-0.52 | N179: F-0.54 | O179: F-0.54 | P179: F-0.52 | Q179: F-0.54 | R179: =IF(R146<=0,"NR",CONCATENATE("U-",TEXT(R146,"0.00#"))) -> U-0.035 | S179: U-0.035 | T179: U-0.035 | U179: set occ. | V179: set zone
B180: Floor | C180: 0 | D180: Heated Slab | E180: 23 | F180: F-0.55 | G180: F-0.55 | I180: =IF(I147<=0,"NR",CONCATENATE("F-",TEXT(I147,"0.00#"))) -> F-0.55 | J180: =IF(J147<=0,"NR",CONCATENATE("F-",TEXT(J147,"0.00#"))) -> F-0.55 | K180: F-0.55 | L180: F-0.55 | M180: F-0.55 | N180: F-0.55 | O180: F-0.55 | P180: F-0.55 | Q180: F-0.55 | R180: U-0.035 | S180: U-0.035 | T180: U-0.035 | U180: set occ. | V180: set zone
B181: BGWall | C181: 0 | D181: mass | E181: 24 | F181: U-0.104 | G181: U-0.078 | I181: =IF(I148<=0,"NR",CONCATENATE("U-",TEXT(I148,"0.00#"))) -> U-0.104 | J181: U-0.104 | K181: U-0.07 | L181: U-0.078 | M181: U-0.078 | N181: U-0.07 | O181: U-0.039 | P181: U-0.039 | Q181: U-0.039 | R181: U-0.03 | S181: U-0.03 | T181: U-0.03 | U181: set occ. | V181: set zone
B182: BGWall | C182: 0 | D182: metal bldg | E182: 25 | F182: U-0.052 | G182: U-0.052 | I182: =IF(I149<=0,"NR",CONCATENATE("U-",TEXT(I149,"0.00#"))) -> U-0.052 | J182: U-0.052 | K182: U-0.07 | L182: U-0.052 | M182: U-0.044 | N182: U-0.07 | O182: U-0.039 | P182: U-0.039 | Q182: U-0.039 | R182: U-0.03 | S182: U-0.03 | T182: U-0.03 | U182: set occ. | V182: set zone
B183: BGWall | C183: 0 | D183: steel frame | E183: 26 | F183: U-0.055 | G183: U-0.055 | I183: =IF(I150<=0,"NR",CONCATENATE("U-",TEXT(I150,"0.00#"))) -> U-0.055 | J183: U-0.049 | K183: U-0.07 | L183: U-0.055 | M183: U-0.044 | N183: U-0.07 | O183: U-0.039 | P183: U-0.039 | Q183: U-0.039 | R183: U-0.03 | S183: U-0.03 | T183: U-0.03 | U183: set occ. | V183: set zone
B184: BGWall | C184: 0 | D184: wood frame/other | E184: 27 | F184: U-0.054 | G184: U-0.054 | I184: =IF(I151<=0,"NR",CONCATENATE("U-",TEXT(I151,"0.00#"))) -> U-0.054 | J184: U-0.051 | K184: U-0.07 | L184: U-0.054 | M184: U-0.044 | N184: U-0.07 | O184: U-0.039 | P184: U-0.039 | Q184: U-0.039 | R184: U-0.03 | S184: U-0.03 | T184: U-0.03 | U184: set occ. | V184: set zone

Sheet Target Area Adjustments
B1: Vertical Fenestration Target Area Adjustment Calculations
B3: ='ENV-SUM'!B3 -> Project Title: | E3: =IF('PROJ-SUM'!$D$3="1 - This title will copy onto other forms","1 - Fill this line out on PROJ-SUM",'PROJ-SUM'!$D$3) -> 1 - Fill this line out on PROJ-SUM | K3: Date | L3: =TEXT('PROJ-SUM'!$F$3,"mm/dd/yyyy") -> 01/01/2017
C6: VF = Vertical fenestration | G6: NW = Net above grade wall (excludes fenestration and doors.)
C7: DR = Opaque doors | G7: Gross Exterior Above-Grade Wall Area= VF + NW + DR
C8: AG = Above-grade
B10: Proposed Areas | F10: Vertical Fenestration | H10: Net Above Grade Wall | J10: Opaque Door
D11: Project Areas -> | E11: VF= | F11: =SUM('ENV-UA'!H83:H98) -> 0 | G11: NW= | H11: =SUM('ENV-UA'!H27:H44) -> 0 | I11: DR= | J11: =SUM('ENV-UA'!H77:H82) -> 0
D12: Existing Non-project Areas -> | E12: VF= | F12: ='ENV-UA'!G11 -> 0 | G12: NW= | H12: ='ENV-UA'!I11 -> 0
B13: Gross Exterior AG Wall Area | D13: Max Vert. Fen. % (C402.3.1) | H13: Maximum Target Vert. Fen. Area
B14: =(SUM(F11:J12)) -> 0 | C14: x | D14: ='TA1'!F152 -> 0.3 | E14: ¸ | F14: 100 | G14: = | H14: =IF(altWWRunchanged,B18,B14*D14) -> 0
B17: Total Vertical Fenestration | F17: Delta Vertical Fenestration | H17: 0 | J17: Excess Vertical Fenestration
B18: =SUM(F11:F12) -> 0 | C18: - | D18: =H14 -> 0 | E18: = | F18: =B18-D18 -> 0 | H18: ô greater | I18: = | J18: =MAX(0,H19) -> 0
H19: =F18 -> 0
B21: Project Vertical Fenestration | D21: Excess Vertical Fenestration | F21: Target Vertical Fenestration | H21: Total Vertical Fenestration | J21: Target VF Multiplier
B22: =F11 -> 0 | C22: - | D22: =J18 -> 0 | E22: = | F22: =B22-D22 -> 0 | G22: ¸ | H22: =B22 -> 0 | I22: = | J22: =IF(H22>0,F22/H22,0) -> 0
B24: Net AG Wall Area | D24: Excess Fenestration | F24: Target Net Wall Area | H24: Net Wall | J24: Target Net Wall Mult.
B25: =H11 -> 0 | C25: + | D25: =D22 -> 0 | E25: = | F25: =B25+D25 -> 0 | G25: ¸ | H25: =B25 -> 0 | I25: = | J25: =IF(H25>0,F25/H25,0) -> 0
B27: Target Areas - UA
C28: Commercial
D29: Vertical Fenestration | F29: Proposed Area | H29: Target VF Mult. | J29: Target Area
D30: Non-metal frame | F30: =SUM('ENV-UA'!H83:H86) -> 0 | G30: x | H30: =IF(F30>0,$J$22,0) -> 0 | I30: = | J30: =F30*H30 -> 0
D31: Metal frame, fixed | F31: =SUM('ENV-UA'!H87:H90) -> 0 | G31: x | H31: =IF(F31>0,$J$22,0) -> 0 | I31: = | J31: =F31*H31 -> 0
D32: Metal frame, operable | F32: =SUM('ENV-UA'!H91:H94) -> 0 | G32: x | H32: =IF(F32>0,$J$22,0) -> 0 | I32: = | J32: =F32*H32 -> 0
D33: Metal frame, entrance door | F33: =SUM('ENV-UA'!H95:H98) -> 0 | G33: x | H33: =IF(F33>0,$J$22,0) -> 0 | I33: = | J33: =F33*H33 -> 0
D34: Above-grade Wall | F34: Proposed Area | H34: Target Net Wall Mult. | J34: Target Area
D35: Steel Frame | F35: =SUM('ENV-UA'!H27:H29) -> 0 | G35: x | H35: =IF(F35>0,$J$25,0) -> 0 | I35: = | J35: =F35*H35 -> 0
D36: Metal Building | F36: =SUM('ENV-UA'!H30:H32) -> 0 | G36: x | H36: 0 | I36: = | J36: 0
D37: Wood / Other frame | F37: =SUM('ENV-UA'!H33:H35) -> 0 | G37: x | H37: 0 | I37: = | J37: 0
D38: Mass | F38: =SUM('ENV-UA'!H36:H38) -> 0 | G38: x | H38: 0 | I38: = | J38: 0
D39: Mass Transfer Deck | F39: =SUM('ENV-UA'!H39:H41) -> 0 | G39: x | H39: 0 | I39: = | J39: 0
D40: Group R Mass | F40: =SUM('ENV-UA'!H42:H44) -> 0 | G40: x | H40: 0 | I40: = | J40: 0
D42: Sum of Proposed | E42: Sum of Proposed | F42: =SUM(F30:F41) -> 0 | H42: Sum of Target | J42: =SUM(J30:J41) -> 0
B44: Target Areas - SHGC x A
D45: Non-North Vertical Fenestration | F45: Proposed Area | H45: Target VF Mult. | J45: Target Area
D46: PF < 0.2 | F46: =SUMPRODUCT(('ENV-SHGC'!$E$25:$E$34)*('ENV-SHGC'!$C$25:$C$34>=0)*('ENV-SHGC'!$C$25:$C$34<0.2)) -> 0 | G46: x | H46: =IF(F46>0,$J$22,0) -> 0 | I46: = | J46: =F46*H46 -> 0
D47: 0.2 ≤ PF < 0.5 | F47: =SUMPRODUCT(('ENV-SHGC'!$E$25:$E$34)*('ENV-SHGC'!$C$25:$C$34>=0.2)*('ENV-SHGC'!$C$25:$C$34<0.5)) -> 0 | G47: x | H47: =IF(F47>0,$J$22,0) -> 0 | I47: = | J47: =F47*H47 -> 0
D48: PF ≥ 0.5 | F48: =SUMPRODUCT(('ENV-SHGC'!$E$25:$E$34)*('ENV-SHGC'!$C$25:$C$34>=0.5)*('ENV-SHGC'!$C$25:$C$34<99)) -> 0 | G48: x | H48: =IF(F48>0,$J$22,0) -> 0 | I48: = | J48: =F48*H48 -> 0
D49: North Vertical Fenestration
D50: PF < 0.2 | F50: =SUMPRODUCT(('ENV-SHGC'!$E$41:$E$47)*('ENV-SHGC'!$C$41:$C$47>=0)*('ENV-SHGC'!$C$41:$C$47<0.2)) -> 0 | G50: x | H50: =IF(F50>0,$J$22,0) -> 0 | I50: = | J50: =F50*H50 -> 0
D51: 0.2 ≤ PF < 0.5 | F51: =SUMPRODUCT(('ENV-SHGC'!$E$41:$E$47)*('ENV-SHGC'!$C$41:$C$47>=0.2)*('ENV-SHGC'!$C$41:$C$47<0.5)) -> 0 | G51: x | H51: =IF(F51>0,$J$22,0) -> 0 | I51: = | J51: =F51*H51 -> 0
D52: PF ≥ 0.5 | F52: =SUMPRODUCT(('ENV-SHGC'!$E$41:$E$47)*('ENV-SHGC'!$C$41:$C$47>=0.5)*('ENV-SHGC'!$C$41:$C$47<99)) -> 0 | G52: x | H52: =IF(F52>0,$J$22,0) -> 0 | I52: = | J52: =F52*H52 -> 0
B54: Skylight Target Area Adjustment Calculations
B56: =B3 -> Project Title: | E56: =E3 -> 1 - Fill this line out on PROJ-SUM | K56: Date | L56: =L3 -> 01/01/2017
C58: SKY= Skylight | E58: NR - Net roof (excludes skylight) | I58: Gross Exterior Roof Area = SKY + NR
B61: Proposed Areas | F61: Skylight | H61: Net Opaque Roof
D62: Project Areas -> | E62: SKY= | F62: =SUM('ENV-UA'!H99:H102) -> 0 | G62: NR= | H62: =SUM('ENV-UA'!H15:H26) -> 0
D63: Existing Non-project Areas -> | E63: SKY= | F63: ='ENV-UA'!G12 -> 0 | G63: NR= | H63: ='ENV-UA'!I12 -> 0
B65: Gross Exterior Roof Area | D65: Max Skylight % (C402.3.1) | H65: Maximum Skylight Fenestration Area
B66: =SUM(F62:H63) -> 0 | C66: x | D66: ='TA1'!F153 -> 0.05 | E66: ¸ | F66: 100 | G66: = | H66: =IF(altSRRunchanged,B70,B66*D66) -> 0
J68: Excess Skylight
B69: Total Skylight Area | D69: Maximum Target | F69: Delta Skylight Area | H69: 0
B70: =SUM(F62:F63) -> 0 | C70: - | D70: =H66 -> 0 | E70: = | F70: =B70-D70 -> 0 | H70: ô greater | I70: = | J70: =MAX(0,H71) -> 0
H71: =F70 -> 0
B73: Project Skylight Area | D73: Excess Skylight | F73: Target Skylight Area | H73: Total Skylight Area | J73: Target SKY Multiplier
B74: =F62 -> 0 | C74: - | D74: =J70 -> 0 | E74: = | F74: =B74-D74 -> 0 | G74: ¸ | H74: =B74 -> 0 | I74: = | J74: =IF(H74>0,F74/H74,0) -> 0
B76: Net Project Roof Area | D76: Excess Skylight | F76: Target Net Roof Area | H76: Net Roof | J76: Target Net Roof Mult.
B77: =H62 -> 0 | C77: + | D77: =D74 -> 0 | E77: = | F77: =B77+D77 -> 0 | G77: ¸ | H77: =B77 -> 0 | I77: = | J77: =IF(H77>0,F77/H77,0) -> 0
B79: Target Areas - UA and SHGC x A
D80: Skylight | F80: Proposed Area | H80: Target SKY Mult. | J80: Target Area
D81: All | F81: =SUM('ENV-UA'!H99:H102) -> 0 | G81: x | H81: =IF(F81>0,$J$74,0) -> 0 | I81: = | J81: =IF(AND(F81=0,J70>0),-J70,F81*H81) -> 0
D82: Roof | F82: Proposed Area | H82: Target Net Roof Mult. | J82: Target Area
D83: Insulation Above Deck | F83: =SUM('ENV-UA'!H15:H17) -> 0 | G83: x | H83: =IF(F83>0,$J$77,0) -> 0 | I83: = | J83: =IF(SUM(F83:F86)=0,-J81,F83*H83) -> 0
D84: Metal Building | F84: =SUM('ENV-UA'!H18:H20) -> 0 | G84: x | H84: =IF(F84>0,$J$77,0) -> 0 | J84: =F84*H84 -> 0
D85: Joist / Single Rafter | F85: =SUM('ENV-UA'!H21:H23) -> 0 | G85: x | H85: =IF(F85>0,$J$77,0) -> 0 | I85: = | J85: =F85*H85 -> 0
D86: Attic / All Others | F86: =SUM('ENV-UA'!H24:H26) -> 0 | G86: x | H86: =IF(F86>0,$J$77,0) -> 0 | I86: = | J86: =F86*H86 -> 0
E88: Sum of Proposed | F88: =SUM(F80:F86) -> 0 | I88: Sum of Target | J88: =SUM(J80:J86) -> 0

Sheet ENV-SHGC
A1: SHGC Calculation | J1: ENV-SHGC
A2: ='ENV-SUM'!A2 -> 2015 WSEC Compliance Forms for Commercial Buildings including R2, R3, & R4 over 3 stories and all R1 | J2: ='ENV-SUM'!G2 -> Revised Oct 2017
A3: ='ENV-SUM'!B3 -> Project Title: | C3: =IF('PROJ-SUM'!$D$3="1 - This title will copy onto other forms","1 - Fill this line out on PROJ-SUM",'PROJ-SUM'!$D$3) -> 1 - Fill this line out on PROJ-SUM | H3: Date | I3: =TEXT('PROJ-SUM'!$F$3,"mm/dd/yyyy") -> 01/01/2017
A4: Target Insulation Allowance: | H4: For Building Department Use
B5: =IF(CompliancePath<>2,"Component Performance Not Selected",IF(CalcType=1,"Fully Conditioned Space - Commercial, Group R, Mixed Use",IF(CalcType=2,"Semi-heated Space",IF(CalcType=3,"Refrigerated Cooler - See note 11 on ENV-UA",IF(CalcType=4,"Refrigerated Freezer - See note 12 on ENV-UA",""))))) -> Component Performance Not Selected
A6: Fenestration Area as % gross above-grade wall area | E6: =IF('ENV-SUM'!E31>0,'ENV-SUM'!E31,0) ->  | G6: ='Target Area Adjustments'!D14 -> 0.3
A7: Skylight Area as % gross roof area | E7: =IF('ENV-SUM'!G31>0,'ENV-SUM'!G31,0) ->  | G7: ='Target Area Adjustments'!D66 -> 0.05
A8: Vertical Fenestration Alternates: | G8: ='TA1'!A28 -> None Selected on ENV-SUM
H10: User Note
A12: Skylights | F12: Proposed SHGC | H12: Target SHGC
A13: Sch. ID | B13: Provide SHGC source and fenestration schedule ID | E13: SHGC | F13: x Area (A) | G13: = SHGC x A | H13: SHGC | I13: x Area (A) = | J13: SHGC x A
G14: =IF(AND(F14=0,E14=0),0,IF(OR(F14=0,E14=0),NA(),F14*E14)) -> 0 | H14: ='TA1'!Z128 -> 0.35 | I14: ='Target Area Adjustments'!J81 -> 0 | J14: =IF(TYPE(H14*I14)<>1,0,H14*I14) -> 0
G15: =IF(AND(F15=0,E15=0),0,IF(OR(F15=0,E15=0),NA(),F15*E15)) -> 0 | H15: SHGC | J15: ='TA1'!Z157 -> 0.35
G16: =IF(AND(F16=0,E16=0),0,IF(OR(F16=0,E16=0),NA(),F16*E16)) -> 0
G17: =IF(AND(F17=0,E17=0),0,IF(OR(F17=0,E17=0),NA(),F17*E17)) -> 0
G18: =IF(AND(F18=0,E18=0),0,IF(OR(F18=0,E18=0),NA(),F18*E18)) -> 0 | M18: 0
E19: Skylight Totals | F19: =SUM(F13:F18) -> 0 | G19: =SUM(G13:G18) -> 0 | I19: =SUM(I13:I18) -> 0 | J19: =SUM(J13:J18) -> 0
J21: =IF(ABS(F19-'Target Area Adjustments'!F62)>0.1,IF(F19>'Target Area Adjustments'!F62,CONCATENATE("More proposed skylight area here than ENV-UA - Remove ",TEXT(F19-'Target Area Adjustments'!F62,"0.0")),CONCATENATE("Less proposed skylight area here than ENV-UA - Add ",TEXT('Target Area Adjustments'!F62-F19,"0.0" )) )," ") -> 
A23: All Non-North Vertical Fenestration+ | E23: Proposed SHGC | G23: PF Category | H23: Target SHGC ++
A24: Sch. ID | B24: Provide SHGC source and fenestration schedule ID | C24: PF | D24: SHGC | E24: x Area (A) | F24: = SHGC x A | H24: SHGC | I24: x Area (A) = | J24: SHGC x A
F25: =IF(AND(E25=0,D25=0),0,IF(OR(E25=0,D25=0),NA(),E25*D25)) -> 0 | G25: PF < 0.2 | H25: ='TA1'!Z125 -> 0.4 | I25: ='Target Area Adjustments'!J46 -> 0 | J25: =IF(TYPE(H25*I25)<>1,0,H25*I25) -> 0
F26: 0 | G26: 0.2≤PF<0.5 | H26: ='TA1'!Z126 -> 0.48 | I26: ='Target Area Adjustments'!J47 -> 0 | J26: =IF(TYPE(H26*I26)<>1,0,H26*I26) -> 0
F27: 0 | G27: PF ≥ 0.5 | H27: ='TA1'!Z127 -> 0.64 | I27: ='Target Area Adjustments'!J48 -> 0 | J27: =IF(TYPE(H27*I27)<>1,0,H27*I27) -> 0
F28: 0
F29: 0
F30: 0
F31: 0
F32: 0
F33: 0
F34: 0 | M34: 0
D35: Non-North Window Totals | E35: =SUM(E24:E34) -> 0 | F35: =SUM(F24:F34) -> 0 | I35: =SUM(I24:I34) -> 0 | J35: =SUM(J24:J34) -> 0
A39: North Vertical Fenestration+ | E39: Proposed SHGC | G39: PF Category | H39: Target SHGC++
A40: Sch. ID | B40: Provide SHGC source and fenestration schedule ID | C40: PF | D40: SHGC | E40: x Area (A) | F40: = SHGC x A | H40: SHGC | I40: x Area (A) = | J40: SHGC x A
F41: =IF(AND(E41=0,D41=0),0,IF(OR(E41=0,D41=0),NA(),E41*D41)) -> 0 | G41: PF < 0.2 | H41: ='TA1'!Z129 -> 0.53 | I41: ='Target Area Adjustments'!J50 -> 0 | J41: =IF(TYPE(H41*I41)<>1,0,H41*I41) -> 0
F42: 0 | G42: 0.2≤PF<0.5 | H42: ='TA1'!Z130 -> 0.58 | I42: ='Target Area Adjustments'!J51 -> 0 | J42: =IF(TYPE(H42*I42)<>1,0,H42*I42) -> 0
F43: 0 | G43: PF ≥ 0.5 | H43: ='TA1'!Z131 -> 0.64 | I43: ='Target Area Adjustments'!J52 -> 0 | J43: =IF(TYPE(H43*I43)<>1,0,H43*I43) -> 0
F44: 0
F45: 0
F46: =IF(AND(E46=0,D46=0),0,IF(OR(E46=0,D46=0),NA(),E46*D46)) -> 0 | N46: 0
F47: 0 | M47: 0 | N47: 0
D48: North Window Totals | E48: =SUM(E40:E47) -> 0 | F48: =SUM(F40:F47) -> 0 | G48: =SUM(G40:G47) -> 0 | I48: =SUM(I40:I47) -> 0 | J48: =SUM(J40:J47) -> 0
B49: ='ENV-UA'!D111 -> 
F50: Area | G50: SHGC x A | I50: Area | J50: SHGC x A
E51: Total (Skylight + Window) | F51: =F19+E35+E48 -> 0 | G51: =G19+F35+F48 -> 0 | I51: =I19+I35+I48 -> 0 | J51: =J19+J35+J48 -> 0
J53: =IF(ABS((E35+E48)-'Target Area Adjustments'!F11)>0.1,IF((E35+E48)>'Target Area Adjustments'!F11,CONCATENATE("More proposed vertical fenestration here than ENV-UA - Remove ",TEXT((E35+E48)-'Target Area Adjustments'!F11,"0.0")),CONCATENATE("Less proposed vertical fenestration here than ENV-UA: Add ",TEXT('Target Area Adjustments'!F11-(E35+E48),"0.0" )) ),"") -> 
A54: Component Performance Compliance (SHGC) | J54: =IF(CompliancePath<>2,"Compliance Performance Not Selected",IF(AND(J53="",G51>0,J51>0),IF(G51>J51+0.00001,"SHGC DOES NOT COMPLY","SHGC COMPLIES"),"")) -> Compliance Performance Not Selected

Sheet ENV-CHK
A1: Building Permit Plans Checklist, pg. 1 | F1: ENV-CHK
A2: =ReadMe!A2 -> 2015 WSEC Compliance Forms for Commercial Buildings including R2, R3, & R4 over 3 stories and all R1 | F2: =ReadMe!B3 -> Revised Oct 2017
A3: Project Title: | C3: =IF('PROJ-SUM'!$D$3="1 - This title will copy onto other forms","1 - Fill this line out on PROJ-SUM",'PROJ-SUM'!$D$3) -> 1 - Fill this line out on PROJ-SUM | E3: Date | F3: ='ENV-SUM'!G3 -> 01/01/2017
A4: The following information is necessary to check a building permit application for compliance with the building envelope requirements in the Washington State Energy Code, Commercial Provisions.
A5: Applicability (yes,no,na) | B5: Code Section | C5: Component | D5: Compliance information required in permit documents | E5: Location in Documents | F5: Building Department Notes
A6: SCOPE
B7: C402.1.1 | C7: Low energy spaces | D7: Identify low energy spaces on plans; include project information, and calculations if applicable, that demonstrate spaces are eligible for envelope provisions exemption
B8: C402.1.1.1 | C8: Semi-heated spaces | D8: Identify semi-heated spaces on plans, include calculations that demonstrate spaces are eligible for wall insulation exemption
B9: C402.1.2 | C9: Equipment Buildings | D9: Provide building area, average wall and roof U-factor, and installed equipment information that demonstrates equipment building is eligible for envelope provision exemption
B10: C410.2 | C10: Walk-in and warehouse cooler and freezer spaces | D10: Identify walk-in and warehouse cooler and freezer spaces on plans
B11: C101.4.1 | C11: Mixed occupancy | D11: Identify spaces with different occupancy requirements on plans
B12: C503.2 | C12: Change of space conditioning | D12: Identify on plans existing unconditioned spaces changing to semi-heated or conditioned space, and existing semi-heated spaces changing to conditioned space; provide calculations for existing and final level of space conditioning, and calculations that demonstrate alteration complies with current WSEC
B13: C505.1 | C13: Change of occupancy | D13: Identify on plans existing F, S and U-occupancy spaces undergoing a change in occupancy; provide calculations that demonstrate alteration complies with the current WSEC | E13: .
D14: Identify on plans pre-2002 Group R spaces undergoing a change to a commercial occupancy; provide calculations that demonstrate alteration complies with the current WSEC
D15: Identify on plans non-Group R occupancy spaces undergoing a change to Group R; provide calculations that demonstrate alteration complies with the current WSEC
A16: ENVELOPE PROVISIONS
B17: C103.2 C103.6.3 | C17: Compliance documentation | D17: Indicate envelope insulation compliance path and provide applicable forms; ENV-PRESCRIPTIVE or ENV-UA / ENV-SHGC for component performance
D18: If complying via total building performance, provide a list of all proposed envelope component types, areas and U-values
B19: C303.1.1 C303.1.2 | C19: Insulation identification | D19: Indicate identification mark shall be applied to all insulation materials and insulation installed such that the mark is readily observable during inspection
B20: C303.1.3 C402.4.3 | C20: Fenestration product rating | D20: Fenestration products shall be labeled with rated U-factor, SHGC, VT, and leakage rating
B21: C303.1.1 C402.2.1 | C21: General insulation installation | D21: Indicate installation methods, thicknesses, densities and clearances to achieve the intended R-value of all insulation materials;
D22: Where two or more layers of rigid insulation will be used, indicate that edge joints between layers are staggered
B23: C103.2 C402.2.2 | C23: Roof assembly insulation | D23: Indicate R-value(s) of cavity/continuous insulation on roof sections;
D24: Indicate framing materials on roof sections;
D25: Indicate method of framing for ceilings below vented attics and vaulted ceilings per A102.2 (std, adv);
D26: Provide area weighted average U-factor calculation for insulation whose thickness varies by 1 inch or less;
D27: Indicate effective U-factors of tapered insulation entirely above deck per A102.2.6; include roof configuration and slope, maximum R-value at peak and minimum R-value at low point for all roof surfaces
D28: Indicate R-values for thermal spacers and each insulation layer, and liner system (LS) method for metal building roofs
B29: C402.2.2 | C29: Skylight curb insulation | D29: Indicate curb insulation R-value on roof section if not included in skylight NFRC rating
B30: C103.2 C402.2.3 C402.2.4 C303.2.1 | C30: Above/below grade wall insulation | D30: Indicate R-value(s) of cavity/continuous insulation on wall sections;
D31: Indicate framing materials on wall sections;
D32: Indicate method of framing for wood construction per A103.2 (std, int, adv);
D33: Indicate material density category, wall weight and heat capacity for qualifying mass walls;
D34: For qualifying ASTM C90 masonry walls, indicate loose-fill core insulation material and percentage of cores filled including grouted cores, bond beams, vertical fills, headers and any other grouted cores;
D35: Indicate method of protection of exposed exterior basement/crawlspace wall insulation
A36: Building Permit Plans Checklist, pg. 2 | F36: ENV-CHK
A37: =$A$2 -> 2015 WSEC Compliance Forms for Commercial Buildings including R2, R3, & R4 over 3 stories and all R1 | F37: =F2 -> Revised Oct 2017
A38: Project Title: | C38: =C3 -> 1 - Fill this line out on PROJ-SUM | E38: Date | F38: =F3 -> 01/01/2017
A39: Applicability (yes,no,na) | B39: Code Section | C39: Component | D39: Compliance information required in permit documents | E39: Location in Documents | F39: Building Department Notes
B40: C103.2 C402.4.4 | C40: Opaque doors | D40: Indicate rated U-factor (swinging) or R-value (non-swinging - roll-up/sliding) on wall sections or in door schedules - applies to doors with less than 50% glazed area
B41: C402.2.5 | C41: Floor over outdoor or unconditioned space insulation | D41: Indicate R-value(s) of cavity/continuous insulation on floor sections;
D42: Indicate framing material on floor sections;
D43: Indicate material density category and weight of qualifying mass floors
B44: C402.2.6 C303.2.1 | C44: Slab-on-grade floor insulation | D44: Indicate R-value of continuous insulation on wall section or foundation detail;
D45: Indicate insulation extends down vertically and/or horizontally the required distance from top of slab;
D46: Indicate method of protection of exposed exterior slab edge insulation
B47: C402.2.6 C303.2.1 | C47: Radiantly heated slab-on-grade floor insulation | D47: Indicate R-value of continuous insulation on wall section or foundation detail;
D48: Indicate insulation extends down vertically from top of slab and then horizontally under the entire slab;
D49: Indicate method of protection of exposed exterior slab edge insulation
B50: C402.2.8 | C50: Radiant heating system insulation | D50: Indicate insulation R-value behind radiant panels, U-bend/headers and bottom surface of radiantly heated floors (other than radiantly heated slab-on-grade)
B51: C402.4.1 C502.2.1 C503.3.2 | C51: Vertical fenestration maximum area | D51: Provide calculation for total vertical fenestration area as a percentage of gross above grade wall area (WWR) for new construction, additions and alterations in ENV-SUM
B52: C402.4.1.1 C405.2.4.1 C502.2.1 C503.3.2 | C52: Increased prescriptive maximum vertical fenestration area with daylight zones and controls | D52: Provide calculations showing that the percentage of overall conditioned floor area within daylight zones is equal to or greater than 50% in 1 and 2 story buildings; OR
D53: Provide calculations showing that the percentage of overall net floor area within daylight zones is equal to or greater than 25% in buildings 3 stories or more; include the gross floor area and list of spaces omitted for the net floor area;
D54: Note in envelope plans that all lighting fixtures located within daylight zones shall be provided with daylight responsive controls per WSEC Section C405.2.4.1; indicate method of control in lighting fixture schedules
D55: Indicate that the VT of vertical fenestration is at least 1.1 times the rated SHGC
B56: C402.4.1.3 C502.2.1 C503.3.2 | C56: Increased prescriptive maximum vertical fenestration area with high-performance glazing | D56: Indicate high performance U-factors and SHGC values in fenestration schedules;
D57: Indicate if an area-weighted U-factor is used for multiple fenestration elements within the same fenestration category per Table C402.3; provide U-factor calculations
B58: C402.4.1.4 C403.6 | C58: Increased prescriptive maximum vertical fenestration area with DOAS mechanical systems | D58: Indicate that for eligibility, all occupied, conditioned spaces will be served by a dedicated outside air system (DOAS) that delivers ventilation air without requiring operation of the heating/cooling system per Section C403.6
B59: C402.1.5 | C59: Wall/vertical fenestration target area adjustment | D59: Indicate if component performance with target area adjustment will be used to account for vertical fenestration area in excess of the prescriptive maximum allowed
B60: C402.4.1 C502.2.2 C503.3.3 | C60: Skylight maximum area | D60: Provide calculation for total skylight area as a percentage of gross roof area (SRR) for new construction, additions and alterations in ENV-SUM
B61: C402.1.5.2 | C61: Roof/skylight target area adjustment | D61: Indicate if component performance with target area adjustment will be used to account for skylight area in excess of the prescriptive maximum allowed
B62: C402.4.3 C303.1.3 | C62: U-factors, SHGC and VT for all fenestration assemblies | D62: Indicate U-factors, SHGC and VT values in fenestration schedules;
D63: Indicate if an area-weighted U-factor is used for multiple fenestration elements within the same fenestration category per Table C402.3; provide U-factor calculations
D64: Indicate if values are NFRC or default; if default then specify frame type, glazing layers, gap width, low-e coatings, gas-fill
B65: C402.4.3 | C65: Permanent shading devices | D65: For windows with overhangs or permanent projection shading devices, provide projection factor calculations (Equation C4-6) and associated minimum SHGC for north and non-north orientations
A66: Building Permit Plans Checklist, pg. 3 | F66: ENV-CHK
A67: =$A$2 -> 2015 WSEC Compliance Forms for Commercial Buildings including R2, R3, & R4 over 3 stories and all R1 | F67: =F2 -> Revised Oct 2017
A68: Project Title: | C68: =C3 -> 1 - Fill this line out on PROJ-SUM | E68: Date | F68: =F3 -> 01/01/2017
A69: Applicability (yes,no,na) | B69: Code Section | C69: Component | D69: Compliance information required in permit documents | E69: Location in Documents | F69: Building Department Notes
B70: C402.4.2 | C70: Spaces in single story buildings requiring skylights | D70: In single story buildings, provide list of enclosed areas that exceed 2,500 sf; for each space identify the space use, floor area, floor to ceiling height, whether skylights are installed, and any exception taken;
D71: Provide calculations for percentage of conditioned floor area located within a daylight zone including skylight and eligible sidelight daylight zones;
D72: Provide calculations for percentage of skylight area in each space over 2,500 sf, OR;
D73: Provide calculations for skylight effective aperture (Equation C4-5) for each space over 2,500 sf;
D74: Indicate haze factor of skylight glazing material or diffuser
A75: ADDITIONAL EFFICIENCY PACKAGE OPTION - ENHANCED ENVELOPE PERFORMANCE
B76: C406.8 | C76: Enhanced envelope performance | D76: To comply with additional efficiency package option, demonstrate envelope insulation compliance via component performance; provide ENV-UA / ENV-SHGC compliance forms; verify that building total UA is 15% lower than the Code target UA
A77: AIR LEAKAGE
B78: C402.5.1.1 | C78: Air barrier construction and sealing | D78: Identify location and provide diagram of continuous air barrier in plans and sections;
D79: Provide details for all joints, transitions in materials, penetrations in air barrier and note method of sealing (caulked, gasketed, or other approved method)
B80: C402.5.3 | C80: Rooms containing open combustion fuel burning appliances used for space conditioning | D80: Indicate that room(s) containing non-direct vent appliances is isolated from conditioned space by the thermal envelope with a sealed air barrier, including doorway gasketing and sealing around ductwork and piping penetrations;
D81: Indicate insulation provided in wall, floor and ceiling of the room envelope, and insulation required on combustion air ductwork
B82: C402.5.4 | C82: Access openings and doors to shafts, chutes, stairways and doors | D82: Indicate locations of all access openings and doors to shafts, chutes, stairways and elevators;
D83: Indicate method of gasketing, weatherstripping and sealing of these openings
B84: C402.5.5 C403.2.4.3 | C84: Outdoor air intakes, exhausts and relief openings | D84: Indicate locations of all stairway enclosure, elevator shaft and building pressurization relief openings, outside air intakes and exhaust openings;
D85: Note in envelope plans that all relief, outside air intake and exhaust openings shall be provided with dampers in accordance with Mechanical Section C403.2.4.3
B86: C402.5.8 | C86: Recessed lighting in building envelope | D86: Indicate method of sealing between light fixture housing and wall or ceiling;
D87: Note in envelope plans that all recessed lighting fixtures shall be IC rated and have an air leakage rating not greater than 2 cfm per ASTM E283 test; include these requirements in lighting fixture schedules
B88: C402.5.6 | C88: Loading dock seals | D88: Indicate weather seal at cargo and loading dock doors
B89: C402.5.7 | C89: Vestibules | D89: Indicate locations and dimensions of vestibules and air curtains;
D90: Indicate exception and criteria utilized for all building entrances and exits that do not have a vestibule or air curtain;
D91: Indicate required performance for air curtains installed per exception 7;
D92: For unconditioned vestibules, indicate which envelope assembly (interior or exterior) complies with the requirements for a conditioned space
B93: C103.2 C402.5.1.2 | C93: Building air leakage test | D93: Indicate on plans the location of air barrier boundaries and area calculations on all six sides of the air barrier;
D94: Indicate air barrier test method in accordance with ASTM E779 or approved equivalent;
D95: Indicate required maximum leakage rate for compliance.
D96: Include the following requirements in project documents: (1) Submit air barrier test report to jurisdiction once test is completed; (2) If test results exceed 0.40 cfm/ft2 (1.5 L/s*m2) at 0.3 in. wg (75 Pa), then visually inspect air barrier and seal noted sources of leakage; (3) Submit a follow-up report to jurisdiction noting corrective measures taken; (4) Include air barrier test report in compliance documentation provided to building owner.
A97: Building Permit Plans Checklist, pg. 4 | F97: ENV-CHK
A98: =$A$2 -> 2015 WSEC Compliance Forms for Commercial Buildings including R2, R3, & R4 over 3 stories and all R1 | F98: =F2 -> Revised Oct 2017
A99: Project Title: | C99: =C3 -> 1 - Fill this line out on PROJ-SUM | E99: Date | F99: =F3 -> 01/01/2017
A100: Applicability (yes,no,na) | B100: Code Section | C100: Component | D100: Compliance information required in permit documents | E100: Location in Documents | F100: Building Department Notes
A101: ADDITIONAL EFFICIENCY PACKAGE OPTION - REDUCED AIR INFILTRATION
B102: C406.9 | C102: Reduced air infiltration | D102: To comply with additional efficiency package option, indicate in project documents that the air barrier test results shall not exceed 0.25 cfm/ft2 (0.94 L/s*m2) at 0.3 in. wg (75 Pa); indicate air barrier test report shall be submitted to the jurisdiction and building owner once test is completed
A103: ALTERATIONS
B104: C503.1 C503.3.1 | C104: Roof alteration - insulation | D104: For a roof alteration where existing ceiling cavities are exposed, indicate cavities are insulated to full depth at R-3 per inch
D105: For a roof covering replacement where insulation is installed entirely above the roof deck, indicate insulation complies with requirements for new construction per Tables C402.1.3 or C402.1.4
B106: C503.1 | C106: Wall and floor alteration - insulation | D106: For a wall or floor alteration (floor over outdoor or unconditioned space) where existing envelope cavities are exposed, indicate cavities are insulated to full depth at R-3 per inch
B107: C503.3.2 | C107: Addition of vertical fenestration | D107: Where the addition of new vertical fenestration results in total building window-to-wall ratio (WWR) exceeding the maximum allowed per C402.4.1, demonstrate method of compliance (vertical fenestration alternate per C503.3.2, or component performance compliance with target area adjustment for the total building)
B108: C503.3.3 | C108: Addition of skylights | D108: Where the addition of new skylights results in total building skylight-to-roof ratio (SRR) exceeding the maximum allowed per C402.4.1, demonstrate component performance compliance with target area adjustment for the total building
A109: PROJECT CLOSE OUT DOCUMENTATION
B110: C103.6.3 | C110: Project close out documentation requirements | D110: Indicate in plans that project close out documentation is required including applicable WSEC envelope compliance forms and calculations, and fenestration NFRC rating certificates
A111: If "no" is selected for any question, provide explanation:
A115: r
A119: End of Building Permit Plans Checklist
A125: na
A126: No
A127: Yes
